{"text_format":"1","workbook":"xlsx","n_sheets":4,"sheets":["Reporte Mensual Consolidado","Reporte uso exclusivo del FNFP","Hoja1","Municipios Dane"],"not_rendered":{"charts":0,"images":2,"macros":1,"external_links":0,"defined_names":48,"comments":0,"pivot_tables":0},"unopened":[],"bounds":{"document_bytes":16777216,"sheet_cells":100000,"rows_first":2000,"rows_last":500,"rows_between":2000,"halvings":0,"cell_chars":16384,"cell_head_chars":4096},"cells_cut":0,"cells_raw":0,"read":"whole","date_system":"1900"}

{"sheet":"Reporte Mensual Consolidado","index":0,"n_rows":80,"n_cols":27,"rows_kept":80,"cut":false,"hidden":false,"merged":[[7,7,7,8],[8,7,8,8],[9,7,9,8],[9,9,9,11],[9,1,9,6],[10,3,10,6],[10,7,10,8],[11,7,11,8],[11,1,11,2],[11,3,11,6],[51,5,51,12],[11,9,11,12],[10,1,10,2],[10,9,10,12],[50,5,50,8],[62,1,62,12],[59,1,59,12],[60,1,60,12],[61,1,61,12],[58,1,58,12],[57,1,57,12],[55,1,56,12],[52,1,52,2],[50,1,51,2],[50,3,51,3],[50,4,51,4],[52,7,52,8],[1,1,1,12],[2,1,2,3],[2,9,2,12],[8,9,8,11],[6,9,6,11],[4,4,4,5],[5,2,5,3],[5,4,5,5],[8,1,8,5],[4,2,4,3],[6,2,6,5],[7,4,7,5],[4,6,5,11],[3,1,3,12],[6,7,6,8],[2,4,2,8],[68,3,68,11],[69,3,69,4],[69,5,69,7],[69,9,69,11],[70,3,70,4],[70,5,70,7],[70,9,70,11],[76,7,76,11],[71,3,71,4],[71,5,71,7],[71,9,71,11],[72,3,72,4],[72,5,72,7],[72,9,72,11],[74,3,74,11],[75,3,75,4],[75,5,75,6],[75,7,75,11],[76,3,76,4],[76,5,76,6],[79,3,79,4],[79,5,79,6],[79,7,79,11],[77,3,77,4],[77,5,77,6],[77,7,77,11],[78,3,78,4],[78,5,78,6],[78,7,78,11]]}
[]
[null,"REPORTE MENSUAL CONSOLIDADO \nCUOTA DE FOMENTO A LA PAPA"]
[null,"VERSIÓN: 04",null,null,"FECHA: 01/08/2021",null,null,null,null,"CÓDIGO: FNFP-F-RC-31-56"]
[null,"En cumplimiento de la Ley Estatutaria 1561 de 2012 de Protección de Datos y normas concordantes, con mi firma autorizo como Titular de los datos personales para que éstos sean incorporados en una base de datos responsabilidad de la FEDERACIÓN COLOMBIANA DE PRODUCTORES DE PAPA-FEDEPAPA y el FONDO NACIONAL DE FOMENTO DE LA PAPA - FNFP, y sean tratados con la finalidad de realizar gestión administrativa, gestión de estadísticas internas, verificación de datos, gestión de recaudos y compras de papa, envío de comunicaciones a través de los medios registrados, mantener, controlar y desarrollar la relación comercial ,gestión de cobros y pagos, transmisión y transferencia de datos con aliados comerciales. Declaro que cuento con la autorización de los terceros registrados en el formato para que su información personal sea incorporada en una base de datos y sea tratada del modo antes mencionado. Es de carácter facultativo suministrar información que verse sobre Datos Sensibles, entendidos como aquellos que afectan la intimidad o generen algún tipo de discriminación o sobre menores de edad. El titular de los datos podrá ejercitar los derechos de acceso, corrección, supresión, revocación o reclamo por infracción sobre sus datos, mediante un escrito dirigido a la FEDERACIÓN COLOMBIANA DE PRODUCTORES DE PAPA-FEDEPAPA. a la dirección de correo electrónico protecciondatos@fedepapa.com indicando en el asunto el derecho que desea ejercitar, o mediante correo ordinario remitido a la dirección Ak 45 No 106B-84 BOGOTÁ D.C"]
[null,null,"MES REPORTADO",null,null,null,"DATOS CONSIGNACIÓN"]
[null,null,"VALOR CANCELADO",null,{"$f":"+M51+M53","v":0}]
[null,null,"FECHA DE ENVÍO",null,null,null,"BANCO",null,null,"FECHA CONSIGNACIÓN"]
[null,null,null,null,null,null,"SUCURSAL"]
[null,"NOMBRE O RAZÓN SOCIAL",null,null,null,null,null,"No. CÉDULA",null,"No. NIT",null,null,"D.V"]
[]
[null,"DEPARTAMENTO:",null,null,null,null,null,"MUNICIPIO:"]
[null,"DIRECCIÓN:",null,null,null,null,null,"TELÉFONO:"]
[null,"FECHA DE COMPRA","NIT/CC\n(Proveedor)","NOMBRE (Proveedor)","DIRECCIÓN  (Proveedor)","TÉLEFONO","DEPARTAMENTO DE ORIGEN DE LA PAPA","MUNICIPIO DE ORIGEN DE LA PAPA","CODIGO MUNICIPIO","VARIEDAD","KILOS COMPRADOS","VALOR COMPRA","VALOR RETENIDO",{"$f":"IF($L13=\"\",\"\",$E$5)","v":0},{"$f":"IF($L13=\"\",\"\",$E$6)","v":0},{"$f":"IF($L13=\"\",\"\",CONCATENATE($C$8,\"/\",$D$8,\"/\",$E$8))","v":"//"},{"$f":"IF($L13=\"\",\"\",$H$7)","v":0},{"$f":"IF($L13=\"\",\"\",$H$8)","v":0},{"$f":"IF($L13=\"\",\"\",CONCATENATE($J$8,\"/\",$K$8,\"/\",$L$8))","v":"//"},{"$f":"IF($L13=\"\",\"\",$B$10)","v":0},{"$f":"IF($L13=\"\",\"\",$H$10)","v":0},{"$f":"IF($L13=\"\",\"\",$J$10)","v":0},{"$f":"IF($L13=\"\",\"\",$M$10)","v":0},{"$f":"IF($L13=\"\",\"\",$D$11)","v":0},{"$f":"IF($L13=\"\",\"\",$J$11)","v":0},{"$f":"IF($L13=\"\",\"\",$D$12)","v":0},{"$f":"IF($L13=\"\",\"\",$J$12)","v":0}]
[null,null,null,null,null,null,null,null,{"$f":"IFERROR(VLOOKUP(H14,'Municipios Dane'!G:H,2,0),\"\")","v":""},null,null,null,{"$f":"+IF(L14=\"\",\"\",L14*0.01)","v":""},"","","",{"$f":"IF($L14=\"\",\"\",$H$7)","v":""},{"$f":"IF($L14=\"\",\"\",$H$8)","v":""},"","","","","","",{"$f":"IF($L14=\"\",\"\",$J$11)","v":""},{"$f":"IF($L14=\"\",\"\",$D$12)","v":""},{"$f":"IF($L14=\"\",\"\",$J$12)","v":""}]
[null,null,null,null,null,null,null,null,{"$f":"IFERROR(VLOOKUP(H15,'Municipios Dane'!G:H,2,0),\"\")","v":""},null,null,null,{"$f":"+IF(L15=\"\",\"\",L15*0.01)","v":""},"","","","","","","","","","","","","",""]
[null,null,null,null,null,null,null,null,{"$f":"IFERROR(VLOOKUP(H16,'Municipios Dane'!G:H,2,0),\"\")","v":""},null,null,null,"","","","","","","","","","","","","","",""]
[null,null,null,null,null,null,null,null,{"$f":"IFERROR(VLOOKUP(H17,'Municipios Dane'!G:H,2,0),\"\")","v":""},null,null,null,"","","","","","","","","","","","","","",""]
[null,null,null,null,null,null,null,null,{"$f":"IFERROR(VLOOKUP(H18,'Municipios Dane'!G:H,2,0),\"\")","v":""},null,null,null,"","","","","","","","","","","","","","",""]
[null,null,null,null,null,null,null,null,{"$f":"IFERROR(VLOOKUP(H19,'Municipios Dane'!G:H,2,0),\"\")","v":""},null,null,null,"","","","","","","","","","","","","","",""]
[null,null,null,null,null,null,null,null,{"$f":"IFERROR(VLOOKUP(H20,'Municipios Dane'!G:H,2,0),\"\")","v":""},null,null,null,"","","","","","","","","","","","","","",""]
[null,null,null,null,null,null,null,null,{"$f":"IFERROR(VLOOKUP(H21,'Municipios Dane'!G:H,2,0),\"\")","v":""},null,null,null,"","","","","","","","","","","","","","",""]
[null,null,null,null,null,null,null,null,{"$f":"IFERROR(VLOOKUP(H22,'Municipios Dane'!G:H,2,0),\"\")","v":""},null,null,null,"","","","","","","","","","","","","","",""]
[null,null,null,null,null,null,null,null,{"$f":"IFERROR(VLOOKUP(H23,'Municipios Dane'!G:H,2,0),\"\")","v":""},null,null,null,"","","","","","","","","","","","","","",""]
[null,null,null,null,null,null,null,null,{"$f":"IFERROR(VLOOKUP(H24,'Municipios Dane'!G:H,2,0),\"\")","v":""},null,null,null,"","","","","","","","","","","","","","",""]
[null,null,null,null,null,null,null,null,{"$f":"IFERROR(VLOOKUP(H25,'Municipios Dane'!G:H,2,0),\"\")","v":""},null,null,null,"","","","","","","","","","","","","","",""]
[null,null,null,null,null,null,null,null,{"$f":"IFERROR(VLOOKUP(H26,'Municipios Dane'!G:H,2,0),\"\")","v":""},null,null,null,"","","","","","","","","","","","","","",""]
[null,null,null,null,null,null,null,null,{"$f":"IFERROR(VLOOKUP(H27,'Municipios Dane'!G:H,2,0),\"\")","v":""},null,null,null,"","","","","","","","","","","","","","",""]
[null,null,null,null,null,null,null,null,{"$f":"IFERROR(VLOOKUP(H28,'Municipios Dane'!G:H,2,0),\"\")","v":""},null,null,null,"","","","","","","","","","","","","","",""]
[null,null,null,null,null,null,null,null,{"$f":"IFERROR(VLOOKUP(H29,'Municipios Dane'!G:H,2,0),\"\")","v":""},null,null,null,"","","","","","","","","","","","","","",""]
[null,null,null,null,null,null,null,null,{"$f":"IFERROR(VLOOKUP(H30,'Municipios Dane'!G:H,2,0),\"\")","v":""},null,null,null,"","","","","","","","","","","","","","",""]
[null,null,null,null,null,null,null,null,{"$f":"IFERROR(VLOOKUP(H31,'Municipios Dane'!G:H,2,0),\"\")","v":""},null,null,null,"","","","","","","","","","","","","","",""]
[null,null,null,null,null,null,null,null,{"$f":"IFERROR(VLOOKUP(H32,'Municipios Dane'!G:H,2,0),\"\")","v":""},null,null,null,"","","","","","","","","","","","","","",""]
[null,null,null,null,null,null,null,null,{"$f":"IFERROR(VLOOKUP(H33,'Municipios Dane'!G:H,2,0),\"\")","v":""},null,null,null,{"$f":"+IF(L33=\"\",\"\",L33*0.01)","v":""},"","","","","","","","","","","","","",""]
[null,null,null,null,null,null,null,null,{"$f":"IFERROR(VLOOKUP(H34,'Municipios Dane'!G:H,2,0),\"\")","v":""},null,null,null,"","","","","","","","","","","","","","",""]
[null,null,null,null,null,null,null,null,{"$f":"IFERROR(VLOOKUP(H35,'Municipios Dane'!G:H,2,0),\"\")","v":""},null,null,null,"","","","","","","","","","","","","","",""]
[null,null,null,null,null,null,null,null,{"$f":"IFERROR(VLOOKUP(H36,'Municipios Dane'!G:H,2,0),\"\")","v":""},null,null,null,"","","","","","","","","","","","","","",""]
[null,null,null,null,null,null,null,null,{"$f":"IFERROR(VLOOKUP(H37,'Municipios Dane'!G:H,2,0),\"\")","v":""},null,null,null,"","","","","","","","","","","","","","",""]
[null,null,null,null,null,null,null,null,{"$f":"IFERROR(VLOOKUP(H38,'Municipios Dane'!G:H,2,0),\"\")","v":""},null,null,null,"","","","","","","","","","","","","","",""]
[null,null,null,null,null,null,null,null,{"$f":"IFERROR(VLOOKUP(H39,'Municipios Dane'!G:H,2,0),\"\")","v":""},null,null,null,"","","","","","","","","","","","","","",""]
[null,null,null,null,null,null,null,null,{"$f":"IFERROR(VLOOKUP(H40,'Municipios Dane'!G:H,2,0),\"\")","v":""},null,null,null,"","","","","","","","","","","","","","",""]
[null,null,null,null,null,null,null,null,{"$f":"IFERROR(VLOOKUP(H41,'Municipios Dane'!G:H,2,0),\"\")","v":""},null,null,null,{"$f":"+IF(L41=\"\",\"\",L41*0.01)","v":""},"","","","","","","","","","","","","",""]
[null,null,null,null,null,null,null,null,{"$f":"IFERROR(VLOOKUP(H42,'Municipios Dane'!G:H,2,0),\"\")","v":""},null,null,null,"","","","","","","","","","","","","","",""]
[null,null,null,null,null,null,null,null,{"$f":"IFERROR(VLOOKUP(H43,'Municipios Dane'!G:H,2,0),\"\")","v":""},null,null,null,"","","","","","","","","","","","","","",""]
[null,null,null,null,null,null,null,null,{"$f":"IFERROR(VLOOKUP(H44,'Municipios Dane'!G:H,2,0),\"\")","v":""},null,null,null,"","","","","","","","","","","","","","",""]
[null,null,null,null,null,null,null,null,{"$f":"IFERROR(VLOOKUP(H45,'Municipios Dane'!G:H,2,0),\"\")","v":""},null,null,null,"","","","","","","","","","","","","","",""]
[null,null,null,null,null,null,null,null,{"$f":"IFERROR(VLOOKUP(H46,'Municipios Dane'!G:H,2,0),\"\")","v":""},null,null,null,"","","","","","","","","","","","","","",""]
[null,null,null,null,null,null,null,null,{"$f":"IFERROR(VLOOKUP(H47,'Municipios Dane'!G:H,2,0),\"\")","v":""},null,null,null,"","","","","","","","","","","","","","",""]
[null,null,null,null,null,null,null,null,{"$f":"IFERROR(VLOOKUP(H48,'Municipios Dane'!G:H,2,0),\"\")","v":""},null,null,null,"","","","","","","","","","","","","","",""]
[null,null,null,null,null,null,null,null,{"$f":"IFERROR(VLOOKUP(H49,'Municipios Dane'!G:H,2,0),\"\")","v":""},null,null,null,"","","","","","","","","","","","","","",""]
[null,null,null,null,null,null,null,null,{"$f":"IFERROR(VLOOKUP(H50,'Municipios Dane'!G:H,2,0),\"\")","v":""},null,null,null,"","","","","","","","","","","","","","",""]
[null,null,null,null,null,"Recuerde que el formato debe ser  firmado y enviado en formato Excel Y PDF a los correos del FNFP",null,null,null,"TOTAL",{"$f":"SUM($K$14:$K$50)","v":0},{"$f":"SUM($L$14:$L$50)","v":0},{"$f":"+$L$51*0.01","v":0},{"$f":"IF($L51=\"\",\"\",$E$5)","v":0},{"$f":"IF($L51=\"\",\"\",$E$6)","v":0},{"$f":"IF($L51=\"\",\"\",CONCATENATE($C$8,\"/\",$D$8,\"/\",$E$8))","v":"//"},0,0,{"$f":"IF($L51=\"\",\"\",CONCATENATE($J$8,\"/\",$K$8,\"/\",$L$8))","v":"//"},{"$f":"IF($L51=\"\",\"\",$B$10)","v":0},{"$f":"IF($L51=\"\",\"\",$H$10)","v":0},{"$f":"IF($L51=\"\",\"\",$J$10)","v":0},{"$f":"IF($L51=\"\",\"\",$M$10)","v":0},{"$f":"IF($L51=\"\",\"\",$D$11)","v":0},0,{"$f":"IF($L51=\"\",\"\",$C$12)","v":0},0]
[null,null,null,null,null,"VALOR INTERESES",null,null,null,null,null,null,null,"","","","","","","","","","","","","",""]
[null,"   Nombre y Firma del Contador (a)",null,"Nombre y Firma del Revisor fiscal","Nombre y Firma del Representante legal",null,"DESDE:",null,null,"HASTA:",null,"VALOR INTERESES",null,0,0,"//",0,0,"//",0,0,0,0,0,0,0,0]
[]
[]
[null,"Con el fin de dar cumplimiento a la Ley 1707 de 2014, así como el Artículo 8 del Decreto Reglamentario 2263, el presente formato  corresponde al recaudo consolidado del mes, de la cuota de fomento."]
[]
[null,"FEDERACION COLOMBIANA DE PRODUCTORES DE PAPA"]
[null," ADMINISTRADOR"]
[null,"FONDO NACIONAL DE FOMENTO DE LA PAPA"]
[null,"Oficina principal: Avenida carrera 45 N°106b – 84Bogotá D.C.Conmutador: (57+1) 2142989 EXT. 102 fax: 2152600"]
[null,"www.fedepapa.com"]
[null,"ENVIO DE INFORMACION CORREO: recaudofnfp@fedepapa.com"]
[null,null,null,null,null,null,null,null,null,null,null,"FORMA: FNFP- RMC -010"]
[]
[]
[]
[]
[null,null,null,"APROBACION Y CONTROL DE CAMBIOS "]
[null,null,null,null,null,"ELABORÓ:",null,null,null,"APROBÓ:"]
[null,null,null,"NOMBRE",null,"CATALINA GOMEZ GONZALEZ",null,null,null,"GERMAN A. PALACIO V."]
[null,null,null,"CARGO",null,"DIRECTOR RECAUDO",null,null,null,"ADMINISTRADOR FNFP"]
[null,null,null,"FECHA",null,"2020-05-20",null,null,null,"2020-05-20"]
[]
[null,null,null,"CONTROL DE CAMBIOS"]
[null,null,null,"VERSION",null,"FECHA",null,"DESCRIPCIÓN DEL CAMBIO"]
[null,null,null,1,null,"2015-04-01",null,"Emisión del documento."]
[null,null,null,2,null,"2018-08-01",null,"Se elimina firma de elaborado y aprobado. Se actualizan consecutivos de codificación. "]
[null,null,null,3,null,"2020-05-20",null,"Se actualiza el cargo de aprobación de Director del Fondo por Administrador del FNFP."]
[null,null,null,4,null,"2021-08-01",null,"Se ingresa autorización de manejo de datos."]

{"sheet":"Reporte uso exclusivo del FNFP","index":1,"n_rows":37,"n_cols":26,"rows_kept":37,"cut":false,"hidden":false,"merged":[]}
["FECHA DE COMPRA","NIT/CC","NOMBRE PROVEEDOR","DIRECCIÓN","TELEFONO","DEPARTAMENTO DE ORIDEN DE LA PAPA","MUNICIPIO DE ORIGEN DE LA PAPA","CODIGO","VARIEDAD","KILOS COMPRADOS","VALOR COMPRA","VALOR RETENIDO","MES REPORTADO","VALOR RECAUDADO","FECHA DE ENVÍO","BANCO","SUCURSAL","FECHA CONSIGNACIÓN","NOMBRE O RAZÓN SOCIAL","No. CÉDULA","No. NIT","D.V.","DEPARTAMENTO:","MUNICIPIO:","DIRECCIÓN:","TELÉFONO:"]
[null,null,null,null,null,null,null,"",null,null,null,"","","","","","","","","","","","","","",""]
[null,null,null,null,null,null,null,"",null,null,null,"","","","","","","","","","","","","","",""]
[null,null,null,null,null,null,null,"",null,null,null,"","","","","","","","","","","","","","",""]
[null,null,null,null,null,null,null,"",null,null,null,"","","","","","","","","","","","","","",""]
[null,null,null,null,null,null,null,"",null,null,null,"","","","","","","","","","","","","","",""]
[null,null,null,null,null,null,null,"",null,null,null,"","","","","","","","","","","","","","",""]
[null,null,null,null,null,null,null,"",null,null,null,"","","","","","","","","","","","","","",""]
[null,null,null,null,null,null,null,"",null,null,null,"","","","","","","","","","","","","","",""]
[null,null,null,null,null,null,null,"",null,null,null,"","","","","","","","","","","","","","",""]
[null,null,null,null,null,null,null,"",null,null,null,"","","","","","","","","","","","","","",""]
[null,null,null,null,null,null,null,"",null,null,null,"","","","","","","","","","","","","","",""]
[null,null,null,null,null,null,null,"",null,null,null,"","","","","","","","","","","","","","",""]
[null,null,null,null,null,null,null,"",null,null,null,"","","","","","","","","","","","","","",""]
[null,null,null,null,null,null,null,"",null,null,null,"","","","","","","","","","","","","","",""]
[null,null,null,null,null,null,null,"",null,null,null,"","","","","","","","","","","","","","",""]
[null,null,null,null,null,null,null,"",null,null,null,"","","","","","","","","","","","","","",""]
[null,null,null,null,null,null,null,"",null,null,null,"","","","","","","","","","","","","","",""]
[null,null,null,null,null,null,null,"",null,null,null,"","","","","","","","","","","","","","",""]
[null,null,null,null,null,null,null,"",null,null,null,"","","","","","","","","","","","","","",""]
[null,null,null,null,null,null,null,"",null,null,null,"","","","","","","","","","","","","","",""]
[null,null,null,null,null,null,null,"",null,null,null,"","","","","","","","","","","","","","",""]
[null,null,null,null,null,null,null,"",null,null,null,"","","","","","","","","","","","","","",""]
[null,null,null,null,null,null,null,"",null,null,null,"","","","","","","","","","","","","","",""]
[null,null,null,null,null,null,null,"",null,null,null,"","","","","","","","","","","","","","",""]
[null,null,null,null,null,null,null,"",null,null,null,"","","","","","","","","","","","","","",""]
[null,null,null,null,null,null,null,"",null,null,null,"","","","","","","","","","","","","","",""]
[null,null,null,null,null,null,null,"",null,null,null,"","","","","","","","","","","","","","",""]
[null,null,null,null,null,null,null,"",null,null,null,"","","","","","","","","","","","","","",""]
[null,null,null,null,null,null,null,"",null,null,null,"","","","","","","","","","","","","","",""]
[null,null,null,null,null,null,null,"",null,null,null,"","","","","","","","","","","","","","",""]
[null,null,null,null,null,null,null,"",null,null,null,"","","","","","","","","","","","","","",""]
[null,null,null,null,null,null,null,"",null,null,null,"","","","","","","","","","","","","","",""]
[null,null,null,null,null,null,null,"",null,null,null,"","","","","","","","","","","","","","",""]
[null,null,null,null,null,null,null,"",null,null,null,"","","","","","","","","","","","","","",""]
[null,null,null,null,null,null,null,"",null,null,null,"","","","","","","","","","","","","","",""]
[null,null,null,null,null,null,null,"",null,null,null,"","","","","","","","","","","","","","",""]

{"sheet":"Hoja1","index":2,"n_rows":55,"n_cols":3,"rows_kept":55,"cut":false,"hidden":true,"merged":[]}
["DAVIVIENDA","Amazonas","Variedades"]
["BOGOTÁ","Antioquia","CRIOLLA"]
["Enero","Arauca","R–12 (DIACOL CAPIRO)"]
["Febrero","Atlantico","PARDA PASTUSA"]
["Marzo","Bogotá","SUPREMA"]
["Abril","Bolivar","SABANERA (TUQUERREÑA)"]
["Mayo","Boyaca","NEVADA"]
["Junio","Caldas","SUPERIOR "]
["Julio","Caqueta","ÚNICA"]
["Agosto","Casanare","PURACÉ"]
["Septiembre","Cauca","BETINA"]
["Octubre","Cesar","PUNTO AZUL"]
["Noviembre","Choco","ROJA NARIÑO"]
["Diciembre","Cordoba","NATIVAS"]
[2017,"Cundinamarca","ESMERALDA"]
[2018,"Guainia","RUBÍ"]
[2019,"Guaviare","OTRA"]
[2020,"Huila"]
[2021,"La Guajira"]
[2022,"Magdalena"]
[2023,"Meta"]
[2024,"Nariño"]
[2025,"Norte de Santander"]
[0,"Putumayo"]
[1,"Quindio"]
[2,"Risaralda"]
[3,"San Andres"]
[4,"Santander"]
[5,"Sucre"]
[6,"Tolima"]
[7,"Valle"]
[8,"Vaupes"]
[9,"Vichada"]
[10]
[11]
[12]
[13]
[14]
[15]
[16]
[17]
[18]
[19]
[20]
[21]
[22]
[23]
[24]
[25]
[26]
[27]
[28]
[29]
[30]
[31]

{"sheet":"Municipios Dane","index":3,"n_rows":1112,"n_cols":92,"rows_kept":1112,"cut":false,"hidden":true,"merged":[]}
[null,null,null,null,null,null,"MUNICIPIO",null,null,"MUNICIPIO",null,null,"MUNICIPIO",null,null,"MUNICIPIO",null,null,"MUNICIPIO",null,null,"MUNICIPIO",null,null,"MUNICIPIO",null,null,"MUNICIPIO",null,null,"MUNICIPIO",null,null,"MUNICIPIO",null,null,"MUNICIPIO",null,null,"MUNICIPIO",null,null,"MUNICIPIO",null,null,"MUNICIPIO",null,null,"MUNICIPIO",null,null,"MUNICIPIO",null,null,"MUNICIPIO",null,null,"MUNICIPIO",null,null,"MUNICIPIO",null,null,"MUNICIPIO",null,null,"MUNICIPIO",null,null,"MUNICIPIO",null,null,"MUNICIPIO",null,null,"MUNICIPIO",null,null,"MUNICIPIO",null,null,"MUNICIPIO",null,null,"MUNICIPIO",null,null,"MUNICIPIO",null,null,"MUNICIPIO"]
["AMAZONAS",1,"Departamento","Descripcion Municipio","CODIGO","ANTIOQUIA","MEDELLÍN",5001,"ARAUCA","ARAUCA",81001,"ATLÁNTICO","BARRANQUILLA",8001,"BOGOTÁ_DC","BOGOTÁ_DC",11001,"BOLÍVAR","CARTAGENA DE INDIAS",13001,"BOYACÁ","TUNJA",15001,"CALDAS","MANIZALES",17001,"CAQUETÁ","FLORENCIA",18001,"CASANARE","YOPAL",85001,"CAUCA","POPAYÁN",19001,"CESAR","VALLEDUPAR",20001,"CHOCÓ","QUIBDÓ",27001,"CÓRDOBA","MONTERÍA",23001,"CUNDINAMARCA","AGUA DE DIOS",25001,"GUAINÍA","INÍRIDA",94001,"HUILA","NEIVA",41001,"LA_GUAJIRA","RIOHACHA",44001,"MAGDALENA","SANTA MARTA",47001,"META","VILLAVICENCIO",50001,"NARIÑO","PASTO",52001,"NORTE_DE_SANTANDER","SAN JOSÉ DE CÚCUTA",{"$error":"#N/A"},"PUTUMAYO","MOCOA",86001,"QUINDIO","ARMENIA",5059,"RISARALDA","PEREIRA",66001,"SANTANDER","BUCARAMANGA",68001,"SUCRE","SINCELEJO",70001,"TOLIMA","IBAGUÉ",73001,"VALLE_DEL_CAUCA","CALI",76001,"VAUPÉS","MITÚ",97001]
["ANTIOQUIA",2,"AMAZONAS","LETICIA",91001,"ANTIOQUIA","ABEJORRAL",5002,"ARAUCA","ARAUQUITA",81065,"ATLÁNTICO","BARANOA",8078,null,null,null,"BOLÍVAR","ACHÍ",13006,"BOYACÁ","ALMEIDA",15022,"CALDAS","AGUADAS",17013,"CAQUETÁ","ALBANIA",18029,"CASANARE","AGUAZUL",85010,"CAUCA","ALMAGUER",19022,"CESAR","AGUACHICA",20011,"CHOCÓ","ACANDÍ",27006,"CÓRDOBA","AYAPEL",23068,"CUNDINAMARCA","ALBÁN",25019,"GUAINÍA","BARRANCO MINAS",94343,"HUILA","ACEVEDO",41006,"LA_GUAJIRA","ALBANIA",18029,"MAGDALENA","ALGARROBO",47030,"META","ACACÍAS",50006,"NARIÑO","ALBÁN",25019,"NORTE_DE_SANTANDER","ABREGO",54003,"PUTUMAYO","COLÓN",52203,"QUINDIO","BUENAVISTA",15109,"RISARALDA","APÍA",66045,"SANTANDER","AGUADA",68013,"SUCRE","BUENAVISTA",15109,"TOLIMA","ALPUJARRA",73024,"VALLE_DEL_CAUCA","ALCALÁ",76020,"VAUPÉS","CARURU",97161]
["ARAUCA",3,"AMAZONAS","EL ENCANTO",91263,"ANTIOQUIA","ABRIAQUÍ",5004,"ARAUCA","CRAVO NORTE",81220,"ATLÁNTICO","CAMPO DE LA CRUZ",8137,null,null,null,"BOLÍVAR","ALTOS DEL ROSARIO",13030,"BOYACÁ","AQUITANIA",15047,"CALDAS","ANSERMA",17042,"CAQUETÁ","BELÉN DE LOS ANDAQUÍES",18094,"CASANARE","CHAMEZA",85015,"CAUCA","ARGELIA",5055,"CESAR","AGUSTÍN CODAZZI",20013,"CHOCÓ","ALTO BAUDÓ",27025,"CÓRDOBA","BUENAVISTA",15109,"CUNDINAMARCA","ANAPOIMA",25035,"GUAINÍA","MAPIRIPANA",94663,"HUILA","AGRADO",41013,"LA_GUAJIRA","BARRANCAS",44078,"MAGDALENA","ARACATACA",47053,"META","BARRANCA DE UPÍA",50110,"NARIÑO","ALDANA",52022,"NORTE_DE_SANTANDER","ARBOLEDAS",54051,"PUTUMAYO","ORITO",86320,"QUINDIO","CALARCA",63130,"RISARALDA","BALBOA",19075,"SANTANDER","ALBANIA",18029,"SUCRE","CAIMITO",70124,"TOLIMA","ALVARADO",73026,"VALLE_DEL_CAUCA","ANDALUCÍA",76036,"VAUPÉS","PACOA",97511]
["ATLÁNTICO",4,"AMAZONAS","LA CHORRERA",91405,"ANTIOQUIA","ALEJANDRÍA",5021,"ARAUCA","FORTUL",81300,"ATLÁNTICO","CANDELARIA",8141,null,null,null,"BOLÍVAR","ARENAL",13042,"BOYACÁ","ARCABUCO",15051,"CALDAS","ARANZAZU",17050,"CAQUETÁ","CARTAGENA DEL CHAIRÁ",18150,"CASANARE","HATO COROZAL",85125,"CAUCA","BALBOA",19075,"CESAR","ASTREA",20032,"CHOCÓ","ATRATO",27050,"CÓRDOBA","CANALETE",23090,"CUNDINAMARCA","ANOLAIMA",25040,"GUAINÍA","SAN FELIPE",94883,"HUILA","AIPE",41016,"LA_GUAJIRA","DIBULLA",44090,"MAGDALENA","ARIGUANÍ",47058,"META","CABUYARO",50124,"NARIÑO","ANCUYÁ",52036,"NORTE_DE_SANTANDER","BOCHALEMA",54099,"PUTUMAYO","PUERTO ASÍS",86568,"QUINDIO","CIRCASIA",63190,"RISARALDA","BELÉN DE UMBRÍA",66088,"SANTANDER","ARATOCA",68051,"SUCRE","COLOSO",70204,"TOLIMA","AMBALEMA",73030,"VALLE_DEL_CAUCA","ANSERMANUEVO",76041,"VAUPÉS","TARAIRA",97666]
["BOGOTÁ_DC",5,"AMAZONAS","LA PEDRERA",91407,"ANTIOQUIA","AMAGÁ",5030,"ARAUCA","PUERTO RONDÓN",81591,"ATLÁNTICO","GALAPA",8296,null,null,null,"BOLÍVAR","ARJONA",13052,"BOYACÁ","BELÉN",15087,"CALDAS","BELALCÁZAR",17088,"CAQUETÁ","CURILLO",18205,"CASANARE","LA SALINA",85136,"CAUCA","BOLÍVAR",19100,"CESAR","BECERRIL",20045,"CHOCÓ","BAGADÓ",27073,"CÓRDOBA","CERETÉ",23162,"CUNDINAMARCA","ARBELÁEZ",25053,"GUAINÍA","PUERTO COLOMBIA",8573,"HUILA","ALGECIRAS",41020,"LA_GUAJIRA","DISTRACCIÓN",44098,"MAGDALENA","CERRO SAN ANTONIO",47161,"META","CASTILLA LA NUEVA",50150,"NARIÑO","ARBOLEDA",52051,"NORTE_DE_SANTANDER","BUCARASICA",54109,"PUTUMAYO","PUERTO CAICEDO",86569,"QUINDIO","CÓRDOBA",13212,"RISARALDA","DOSQUEBRADAS",66170,"SANTANDER","BARBOSA",5079,"SUCRE","COROZAL",70215,"TOLIMA","ANZOÁTEGUI",73043,"VALLE_DEL_CAUCA","ARGELIA",5055,"VAUPÉS","PAPUNAUA",97777]
["BOLÍVAR",6,"AMAZONAS","LA VICTORIA",91430,"ANTIOQUIA","AMALFI",5031,"ARAUCA","SARAVENA",81736,"ATLÁNTICO","JUAN DE ACOSTA",8372,null,null,null,"BOLÍVAR","ARROYOHONDO",13062,"BOYACÁ","BERBEO",15090,"CALDAS","CHINCHINÁ",17174,"CAQUETÁ","EL DONCELLO",18247,"CASANARE","MANÍ",85139,"CAUCA","BUENOS AIRES",19110,"CESAR","BOSCONIA",20060,"CHOCÓ","BAHÍA SOLANO",27075,"CÓRDOBA","CHIMÁ",23168,"CUNDINAMARCA","BELTRÁN",25086,"GUAINÍA","LA GUADALUPE",94885,"HUILA","ALTAMIRA",41026,"LA_GUAJIRA","EL MOLINO",44110,"MAGDALENA","CHIBOLO",47170,"META","CUBARRAL",50223,"NARIÑO","BARBACOAS",52079,"NORTE_DE_SANTANDER","CÁCOTA",54125,"PUTUMAYO","PUERTO GUZMÁN",86571,"QUINDIO","FILANDIA",63272,"RISARALDA","GUÁTICA",66318,"SANTANDER","BARICHARA",68079,"SUCRE","COVEÑAS",70221,"TOLIMA","ARMERO",73055,"VALLE_DEL_CAUCA","BOLÍVAR",19100,"VAUPÉS","YAVARATÉ",97889]
["BOYACÁ",7,"AMAZONAS","MIRITÍ - PARANÁ",91460,"ANTIOQUIA","ANDES",5034,"ARAUCA","TAME",81794,"ATLÁNTICO","LURUACO",8421,null,null,null,"BOLÍVAR","BARRANCO DE LOBA",13074,"BOYACÁ","BETÉITIVA",15092,"CALDAS","FILADELFIA",17272,"CAQUETÁ","EL PAUJIL",18256,"CASANARE","MONTERREY",85162,"CAUCA","CAJIBÍO",19130,"CESAR","CHIMICHAGUA",20175,"CHOCÓ","BAJO BAUDÓ",27077,"CÓRDOBA","CHINÚ",23182,"CUNDINAMARCA","BITUIMA",25095,"GUAINÍA","CACAHUAL",94886,"HUILA","BARAYA",41078,"LA_GUAJIRA","FONSECA",44279,"MAGDALENA","CIÉNAGA",47189,"META","CUMARAL",50226,"NARIÑO","BELÉN",15087,"NORTE_DE_SANTANDER","CACHIRÁ",54128,"PUTUMAYO","PUERTO LEGUÍZAMO",{"$error":"#N/A"},"QUINDIO","GÉNOVA",63302,"RISARALDA","LA CELIA",66383,"SANTANDER","BARRANCABERMEJA",68081,"SUCRE","CHALÁN",70230,"TOLIMA","ATACO",73067,"VALLE_DEL_CAUCA","BUENAVENTURA",76109,"VICHADA","PUERTO CARREÑO",99001]
["CALDAS",8,"AMAZONAS","PUERTO ALEGRÍA",91530,"ANTIOQUIA","ANGELÓPOLIS",5036,"SAN_ANDRÉS","SAN ANDRÉS",88001,"ATLÁNTICO","MALAMBO",8433,null,null,null,"BOLÍVAR","CALAMAR",13140,"BOYACÁ","BOAVITA",15097,"CALDAS","LA DORADA",17380,"CAQUETÁ","LA MONTAÑITA",18410,"CASANARE","NUNCHÍA",85225,"CAUCA","CALDONO",19137,"CESAR","CHIRIGUANÁ",20178,"CHOCÓ","BOJAYA",27099,"CÓRDOBA","CIÉNAGA DE ORO",23189,"CUNDINAMARCA","BOJACÁ",25099,"GUAINÍA","PANA PANA",94887,"HUILA","CAMPOALEGRE",41132,"LA_GUAJIRA","HATO NUEVO",44378,"MAGDALENA","CONCORDIA",5209,"META","EL CALVARIO",50245,"NARIÑO","BUESACO",52110,"NORTE_DE_SANTANDER","CHINÁCOTA",54172,"PUTUMAYO","SIBUNDOY",86749,"QUINDIO","LA TEBAIDA",63401,"RISARALDA","LA VIRGINIA",66400,"SANTANDER","BETULIA",5093,"SUCRE","EL ROBLE",70233,"TOLIMA","CAJAMARCA",73124,"VALLE_DEL_CAUCA","GUADALAJARA DE BUGA",76111,"VICHADA","LA PRIMAVERA",99524]
["CAQUETÁ",9,"AMAZONAS","PUERTO ARICA",91536,"ANTIOQUIA","ANGOSTURA",5038,"SAN_ANDRÉS","PROVIDENCIA",52565,"ATLÁNTICO","MANATÍ",8436,null,null,null,"BOLÍVAR","CANTAGALLO",13160,"BOYACÁ","BOYACÁ",15104,"CALDAS","LA MERCED",17388,"CAQUETÁ","MILÁN",18460,"CASANARE","OROCUÉ",85230,"CAUCA","CALOTO",19142,"CESAR","CURUMANÍ",20228,"CHOCÓ","EL CANTÓN DEL SAN PABLO",27135,"CÓRDOBA","COTORRA",23300,"CUNDINAMARCA","CABRERA",25120,"GUAINÍA","MORICHAL",94888,"HUILA","COLOMBIA",41206,"LA_GUAJIRA","LA JAGUA DEL PILAR",44420,"MAGDALENA","EL BANCO",47245,"META","EL CASTILLO",50251,"NARIÑO","COLÓN",52203,"NORTE_DE_SANTANDER","CHITAGÁ",54174,"PUTUMAYO","SAN FRANCISCO",5652,"QUINDIO","MONTENEGRO",63470,"RISARALDA","MARSELLA",66440,"SANTANDER","BOLÍVAR",19100,"SUCRE","GALERAS",70235,"TOLIMA","CARMEN DE APICALÁ",73148,"VALLE_DEL_CAUCA","BUGALAGRANDE",76113,"VICHADA","SANTA ROSALÍA",99624]
["CASANARE",10,"AMAZONAS","PUERTO NARIÑO",91540,"ANTIOQUIA","ANORÍ",5040,null,null,null,"ATLÁNTICO","PALMAR DE VARELA",8520,null,null,null,"BOLÍVAR","CICUCO",13188,"BOYACÁ","BRICEÑO",5107,"CALDAS","MANZANARES",17433,"CAQUETÁ","MORELIA",18479,"CASANARE","PAZ DE ARIPORO",85250,"CAUCA","CORINTO",19212,"CESAR","EL COPEY",20238,"CHOCÓ","CARMEN DEL DARIEN",27150,"CÓRDOBA","LA APARTADA",23350,"CUNDINAMARCA","CACHIPAY",25123,"GUAVIARE","SAN JOSÉ DEL GUAVIARE",95001,"HUILA","ELÍAS",41244,"LA_GUAJIRA","MAICAO",44430,"MAGDALENA","EL PIÑON",47258,"META","EL DORADO",50270,"NARIÑO","CONSACA",52207,"NORTE_DE_SANTANDER","CONVENCIÓN",54206,"PUTUMAYO","SAN MIGUEL",86757,"QUINDIO","PIJAO",63548,"RISARALDA","MISTRATÓ",66456,"SANTANDER","CABRERA",25120,"SUCRE","GUARANDA",70265,"TOLIMA","CASABIANCA",73152,"VALLE_DEL_CAUCA","CAICEDONIA",76122,"VICHADA","CUMARIBO",99773]
["CAUCA",11,"AMAZONAS","PUERTO SANTANDER",91669,"ANTIOQUIA","SANTA FÉ DE ANTIOQUIA",5042,null,null,null,"ATLÁNTICO","PIOJÓ",8549,null,null,null,"BOLÍVAR","CÓRDOBA",13212,"BOYACÁ","BUENAVISTA",15109,"CALDAS","MARMATO",17442,"CAQUETÁ","PUERTO RICO",18592,"CASANARE","PORE",85263,"CAUCA","EL TAMBO",19256,"CESAR","EL PASO",20250,"CHOCÓ","CÉRTEGUI",27160,"CÓRDOBA","LORICA",23417,"CUNDINAMARCA","CAJICÁ",25126,"GUAVIARE","CALAMAR",13140,"HUILA","GARZÓN",41298,"LA_GUAJIRA","MANAURE",20443,"MAGDALENA","EL RETÉN",47268,"META","FUENTE DE ORO",50287,"NARIÑO","CONTADERO",52210,"NORTE_DE_SANTANDER","CUCUTILLA",54223,"PUTUMAYO","SANTIAGO",54680,"QUINDIO","QUIMBAYA",63594,"RISARALDA","PUEBLO RICO",66572,"SANTANDER","CALIFORNIA",68132,"SUCRE","LA UNIÓN",5400,"TOLIMA","CHAPARRAL",73168,"VALLE_DEL_CAUCA","CALIMA",76126]
["CESAR",12,"AMAZONAS","TARAPACÁ",91798,"ANTIOQUIA","ANZÁ",5044,null,null,null,"ATLÁNTICO","POLONUEVO",8558,null,null,null,"BOLÍVAR","CLEMENCIA",13222,"BOYACÁ","BUSBANZÁ",15114,"CALDAS","MARQUETALIA",17444,"CAQUETÁ","SAN JOSÉ DEL FRAGUA",18610,"CASANARE","RECETOR",85279,"CAUCA","FLORENCIA",18001,"CESAR","GAMARRA",20295,"CHOCÓ","CONDOTO",27205,"CÓRDOBA","LOS CÓRDOBAS",23419,"CUNDINAMARCA","CAPARRAPÍ",25148,"GUAVIARE","EL RETORNO",95025,"HUILA","GIGANTE",41306,"LA_GUAJIRA","SAN JUAN DEL CESAR",44650,"MAGDALENA","FUNDACIÓN",47288,"META","GRANADA",5313,"NARIÑO","CÓRDOBA",13212,"NORTE_DE_SANTANDER","DURANIA",54239,"PUTUMAYO","VALLE DEL GUAMUEZ",86865,"QUINDIO","SALENTO",63690,"RISARALDA","QUINCHÍA",66594,"SANTANDER","CAPITANEJO",68147,"SUCRE","LOS PALMITOS",70418,"TOLIMA","COELLO",73200,"VALLE_DEL_CAUCA","CANDELARIA",8141]
["CHOCÓ",13,null,null,null,"ANTIOQUIA","APARTADÓ",5045,null,null,null,"ATLÁNTICO","PONEDERA",8560,null,null,null,"BOLÍVAR","EL CARMEN DE BOLÍVAR",13244,"BOYACÁ","CALDAS",5129,"CALDAS","MARULANDA",17446,"CAQUETÁ","SAN VICENTE DEL CAGUÁN",18753,"CASANARE","SABANALARGA",5628,"CAUCA","GUACHENÉ",19300,"CESAR","GONZÁLEZ",20310,"CHOCÓ","EL CARMEN DE ATRATO",27245,"CÓRDOBA","MOMIL",23464,"CUNDINAMARCA","CÁQUEZA",25151,"GUAVIARE","MIRAFLORES",15455,"HUILA","GUADALUPE",5315,"LA_GUAJIRA","URIBIA",44847,"MAGDALENA","GUAMAL",47318,"META","GUAMAL",47318,"NARIÑO","CUASPUD",52224,"NORTE_DE_SANTANDER","EL CARMEN",54245,"PUTUMAYO","VILLAGARZÓN",86885,null,null,null,"RISARALDA","SANTA ROSA DE CABAL",66682,"SANTANDER","CARCASÍ",68152,"SUCRE","MAJAGUAL",70429,"TOLIMA","COYAIMA",73217,"VALLE_DEL_CAUCA","CARTAGO",76147]
["CÓRDOBA",14,null,null,null,"ANTIOQUIA","ARBOLETES",5051,null,null,null,"ATLÁNTICO","PUERTO COLOMBIA",8573,null,null,null,"BOLÍVAR","EL GUAMO",13248,"BOYACÁ","CAMPOHERMOSO",15135,"CALDAS","NEIRA",17486,"CAQUETÁ","SOLANO",18756,"CASANARE","SÁCAMA",85315,"CAUCA","GUAPI",19318,"CESAR","LA GLORIA",20383,"CHOCÓ","EL LITORAL DEL SAN JUAN",27250,"CÓRDOBA","MONTELÍBANO",23466,"CUNDINAMARCA","CARMEN DE CARUPA",25154,null,null,null,"HUILA","HOBO",41349,"LA_GUAJIRA","URUMITA",44855,"MAGDALENA","NUEVA GRANADA",47460,"META","MAPIRIPÁN",50325,"NARIÑO","CUMBAL",52227,"NORTE_DE_SANTANDER","EL TARRA",54250,null,null,null,null,null,null,"RISARALDA","SANTUARIO",66687,"SANTANDER","CEPITÁ",68160,"SUCRE","MORROA",70473,"TOLIMA","CUNDAY",73226,"VALLE_DEL_CAUCA","DAGUA",76233]
["CUNDINAMARCA",15,null,null,null,"ANTIOQUIA","ARGELIA",5055,null,null,null,"ATLÁNTICO","REPELÓN",8606,null,null,null,"BOLÍVAR","EL PEÑÓN",13268,"BOYACÁ","CERINZA",15162,"CALDAS","NORCASIA",17495,"CAQUETÁ","SOLITA",18785,"CASANARE","SAN LUIS DE PALENQUE",85325,"CAUCA","INZÁ",19355,"CESAR","LA JAGUA DE IBIRICO",20400,"CHOCÓ","ISTMINA",27361,"CÓRDOBA","MOÑITOS",23500,"CUNDINAMARCA","CHAGUANÍ",25168,null,null,null,"HUILA","IQUIRA",41357,"LA_GUAJIRA","VILLANUEVA",13873,"MAGDALENA","PEDRAZA",47541,"META","MESETAS",50330,"NARIÑO","CUMBITARA",52233,"NORTE_DE_SANTANDER","EL ZULIA",54261,null,null,null,null,null,null,null,null,null,"SANTANDER","CERRITO",68162,"SUCRE","OVEJAS",70508,"TOLIMA","DOLORES",73236,"VALLE_DEL_CAUCA","EL ÁGUILA",76243]
["GUAINÍA",16,null,null,null,"ANTIOQUIA","ARMENIA",5059,null,null,null,"ATLÁNTICO","SABANAGRANDE",8634,null,null,null,"BOLÍVAR","HATILLO DE LOBA",13300,"BOYACÁ","CHINAVITA",15172,"CALDAS","PÁCORA",17513,"CAQUETÁ","VALPARAÍSO",18860,"CASANARE","TÁMARA",85400,"CAUCA","JAMBALÓ",19364,"CESAR","MANAURE",20443,"CHOCÓ","JURADÓ",27372,"CÓRDOBA","PLANETA RICA",23555,"CUNDINAMARCA","CHÍA",25175,null,null,null,"HUILA","ISNOS",41359,null,null,null,"MAGDALENA","PIJIÑO DEL CARMEN",47545,"META","LA MACARENA",50350,"NARIÑO","CHACHAGÜÍ",52240,"NORTE_DE_SANTANDER","GRAMALOTE",54313,null,null,null,null,null,null,null,null,null,"SANTANDER","CHARALÁ",68167,"SUCRE","PALMITO",70523,"TOLIMA","ESPINAL",73268,"VALLE_DEL_CAUCA","EL CAIRO",76246]
["GUAVIARE",17,null,null,null,"ANTIOQUIA","BARBOSA",5079,null,null,null,"ATLÁNTICO","SABANALARGA",5628,null,null,null,"BOLÍVAR","MAGANGUÉ",13430,"BOYACÁ","CHIQUINQUIRÁ",15176,"CALDAS","PALESTINA",17524,null,null,null,"CASANARE","TAURAMENA",85410,"CAUCA","LA SIERRA",19392,"CESAR","PAILITAS",20517,"CHOCÓ","LLORÓ",27413,"CÓRDOBA","PUEBLO NUEVO",23570,"CUNDINAMARCA","CHIPAQUE",25178,null,null,null,"HUILA","LA ARGENTINA",41378,null,null,null,"MAGDALENA","PIVIJAY",47551,"META","URIBE",50370,"NARIÑO","EL CHARCO",52250,"NORTE_DE_SANTANDER","HACARÍ",54344,null,null,null,null,null,null,null,null,null,"SANTANDER","CHARTA",68169,"SUCRE","SAMPUÉS",70670,"TOLIMA","FALAN",73270,"VALLE_DEL_CAUCA","EL CERRITO",76248]
["HUILA",18,null,null,null,"ANTIOQUIA","BELMIRA",5086,null,null,null,"ATLÁNTICO","SANTA LUCÍA",8675,null,null,null,"BOLÍVAR","MAHATES",13433,"BOYACÁ","CHISCAS",15180,"CALDAS","PENSILVANIA",17541,null,null,null,"CASANARE","TRINIDAD",85430,"CAUCA","LA VEGA",19397,"CESAR","PELAYA",20550,"CHOCÓ","MEDIO ATRATO",27425,"CÓRDOBA","PUERTO ESCONDIDO",23574,"CUNDINAMARCA","CHOACHÍ",25181,null,null,null,"HUILA","LA PLATA",41396,null,null,null,"MAGDALENA","PLATO",47555,"META","LEJANÍAS",50400,"NARIÑO","EL PEÑOL",52254,"NORTE_DE_SANTANDER","HERRÁN",54347,null,null,null,null,null,null,null,null,null,"SANTANDER","CHIMA",68176,"SUCRE","SAN BENITO ABAD",70678,"TOLIMA","FLANDES",73275,"VALLE_DEL_CAUCA","EL DOVIO",76250]
["LA_GUAJIRA",19,null,null,null,"ANTIOQUIA","BELLO",5088,null,null,null,"ATLÁNTICO","SANTO TOMÁS",8685,null,null,null,"BOLÍVAR","MARGARITA",13440,"BOYACÁ","CHITA",15183,"CALDAS","RIOSUCIO",17614,null,null,null,"CASANARE","VILLANUEVA",13873,"CAUCA","LÓPEZ",19418,"CESAR","PUEBLO BELLO",20570,"CHOCÓ","MEDIO BAUDÓ",27430,"CÓRDOBA","PUERTO LIBERTADOR",23580,"CUNDINAMARCA","CHOCONTÁ",25183,null,null,null,"HUILA","NÁTAGA",41483,null,null,null,"MAGDALENA","PUEBLOVIEJO",47570,"META","PUERTO CONCORDIA",50450,"NARIÑO","EL ROSARIO",52256,"NORTE_DE_SANTANDER","LABATECA",54377,null,null,null,null,null,null,null,null,null,"SANTANDER","CHIPATÁ",68179,"SUCRE","SAN JUAN DE BETULIA",70702,"TOLIMA","FRESNO",73283,"VALLE_DEL_CAUCA","FLORIDA",76275]
["MAGDALENA",20,null,null,null,"ANTIOQUIA","BETANIA",5091,null,null,null,"ATLÁNTICO","SOLEDAD",8758,null,null,null,"BOLÍVAR","MARÍA LA BAJA",13442,"BOYACÁ","CHITARAQUE",15185,"CALDAS","RISARALDA",17616,null,null,null,null,null,null,"CAUCA","MERCADERES",19450,"CESAR","RÍO DE ORO",20614,"CHOCÓ","MEDIO SAN JUAN",27450,"CÓRDOBA","PURÍSIMA",23586,"CUNDINAMARCA","COGUA",25200,null,null,null,"HUILA","OPORAPA",41503,null,null,null,"MAGDALENA","REMOLINO",47605,"META","PUERTO GAITÁN",50568,"NARIÑO","EL TABLÓN DE GÓMEZ",52258,"NORTE_DE_SANTANDER","LA ESPERANZA",54385,null,null,null,null,null,null,null,null,null,"SANTANDER","CIMITARRA",68190,"SUCRE","SAN MARCOS",70708,"TOLIMA","GUAMO",73319,"VALLE_DEL_CAUCA","GINEBRA",76306]
["META",21,null,null,null,"ANTIOQUIA","BETULIA",5093,null,null,null,"ATLÁNTICO","SUAN",8770,null,null,null,"BOLÍVAR","MONTECRISTO",13458,"BOYACÁ","CHIVATÁ",15187,"CALDAS","SALAMINA",17653,null,null,null,null,null,null,"CAUCA","MIRANDA",19455,"CESAR","LA PAZ",20621,"CHOCÓ","NÓVITA",27491,"CÓRDOBA","SAHAGÚN",23660,"CUNDINAMARCA","COTA",25214,null,null,null,"HUILA","PAICOL",41518,null,null,null,"MAGDALENA","SABANAS DE SAN ANGEL",47660,"META","PUERTO LÓPEZ",50573,"NARIÑO","EL TAMBO",19256,"NORTE_DE_SANTANDER","LA PLAYA",54398,null,null,null,null,null,null,null,null,null,"SANTANDER","CONCEPCIÓN",5206,"SUCRE","SAN ONOFRE",70713,"TOLIMA","HERVEO",73347,"VALLE_DEL_CAUCA","GUACARÍ",76318]
["NARIÑO",22,null,null,null,"ANTIOQUIA","CIUDAD BOLÍVAR",5101,null,null,null,"ATLÁNTICO","TUBARÁ",8832,null,null,null,"BOLÍVAR","MOMPÓS",13468,"BOYACÁ","CIÉNEGA",15189,"CALDAS","SAMANÁ",17662,null,null,null,null,null,null,"CAUCA","MORALES",13473,"CESAR","SAN ALBERTO",20710,"CHOCÓ","NUQUÍ",27495,"CÓRDOBA","SAN ANDRÉS DE SOTAVENTO",{"$error":"#N/A"},"CUNDINAMARCA","CUCUNUBÁ",25224,null,null,null,"HUILA","PALERMO",41524,null,null,null,"MAGDALENA","SALAMINA",17653,"META","PUERTO LLERAS",50577,"NARIÑO","FUNES",52287,"NORTE_DE_SANTANDER","LOS PATIOS",54405,null,null,null,null,null,null,null,null,null,"SANTANDER","CONFINES",68209,"SUCRE","SAN PEDRO",70717,"TOLIMA","HONDA",73349,"VALLE_DEL_CAUCA","JAMUNDÍ",76364]
["NORTE_DE_SANTANDER",23,null,null,null,"ANTIOQUIA","BRICEÑO",5107,null,null,null,"ATLÁNTICO","USIACURÍ",8849,null,null,null,"BOLÍVAR","MORALES",13473,"BOYACÁ","CÓMBITA",15204,"CALDAS","SAN JOSÉ",17665,null,null,null,null,null,null,"CAUCA","PADILLA",19513,"CESAR","SAN DIEGO",20750,"CHOCÓ","RÍO IRÓ",27580,"CÓRDOBA","SAN ANTERO",23672,"CUNDINAMARCA","EL COLEGIO",25245,null,null,null,"HUILA","PALESTINA",17524,null,null,null,"MAGDALENA","SAN SEBASTIÁN DE BUENAVISTA",47692,"META","PUERTO RICO",18592,"NARIÑO","GUACHUCAL",52317,"NORTE_DE_SANTANDER","LOURDES",54418,null,null,null,null,null,null,null,null,null,"SANTANDER","CONTRATACIÓN",68211,"SUCRE","SAN LUIS DE SINCÉ",70742,"TOLIMA","ICONONZO",73352,"VALLE_DEL_CAUCA","LA CUMBRE",76377]
["PUTUMAYO",24,null,null,null,"ANTIOQUIA","BURITICÁ",5113,null,null,null,null,null,null,null,null,null,"BOLÍVAR","NOROSI",{"$error":"#N/A"},"BOYACÁ","COPER",15212,"CALDAS","SUPÍA",17777,null,null,null,null,null,null,"CAUCA","PÁEZ",15514,"CESAR","SAN MARTÍN",20770,"CHOCÓ","RÍO QUITO",27600,"CÓRDOBA","SAN BERNARDO DEL VIENTO",23675,"CUNDINAMARCA","EL PEÑÓN",13268,null,null,null,"HUILA","PITAL",41548,null,null,null,"MAGDALENA","SAN ZENÓN",47703,"META","RESTREPO",50606,"NARIÑO","GUAITARILLA",52320,"NORTE_DE_SANTANDER","MUTISCUA",54480,null,null,null,null,null,null,null,null,null,"SANTANDER","COROMORO",68217,"SUCRE","SUCRE",19785,"TOLIMA","LÉRIDA",73408,"VALLE_DEL_CAUCA","LA UNIÓN",5400]
["QUINDIO",25,null,null,null,"ANTIOQUIA","CÁCERES",5120,null,null,null,null,null,null,null,null,null,"BOLÍVAR","PINILLOS",13549,"BOYACÁ","CORRALES",15215,"CALDAS","VICTORIA",17867,null,null,null,null,null,null,"CAUCA","PATÍA",19532,"CESAR","TAMALAMEQUE",20787,"CHOCÓ","RIOSUCIO",17614,"CÓRDOBA","SAN CARLOS",5649,"CUNDINAMARCA","EL ROSAL",25260,null,null,null,"HUILA","PITALITO",41551,null,null,null,"MAGDALENA","SANTA ANA",47707,"META","SAN CARLOS DE GUAROA",50680,"NARIÑO","GUALMATÁN",52323,"NORTE_DE_SANTANDER","OCAÑA",54498,null,null,null,null,null,null,null,null,null,"SANTANDER","CURITÍ",68229,"SUCRE","SANTIAGO DE TOLÚ",70820,"TOLIMA","LÍBANO",73411,"VALLE_DEL_CAUCA","LA VICTORIA",91430]
["RISARALDA",26,null,null,null,"ANTIOQUIA","CAICEDO",5125,null,null,null,null,null,null,null,null,null,"BOLÍVAR","REGIDOR",13580,"BOYACÁ","COVARACHÍA",15218,"CALDAS","VILLAMARÍA",17873,null,null,null,null,null,null,"CAUCA","PIAMONTE",19533,null,null,null,"CHOCÓ","SAN JOSÉ DEL PALMAR",27660,"CÓRDOBA","SAN JOSÉ DE URÉ",{"$error":"#N/A"},"CUNDINAMARCA","FACATATIVÁ",25269,null,null,null,"HUILA","RIVERA",41615,null,null,null,"MAGDALENA","SANTA BÁRBARA DE PINTO",47720,"META","SAN JUAN DE ARAMA",50683,"NARIÑO","ILES",52352,"NORTE_DE_SANTANDER","PAMPLONA",54518,null,null,null,null,null,null,null,null,null,"SANTANDER","EL CARMEN DE CHUCURÍ",68235,"SUCRE","TOLÚ VIEJO",70823,"TOLIMA","SAN SEBASTIÁN DE MARIQUITA",{"$error":"#N/A"},"VALLE_DEL_CAUCA","OBANDO",76497]
["SAN_ANDRÉS",27,null,null,null,"ANTIOQUIA","CALDAS",5129,null,null,null,null,null,null,null,null,null,"BOLÍVAR","RÍO VIEJO",13600,"BOYACÁ","CUBARÁ",15223,"CALDAS","VITERBO",17877,null,null,null,null,null,null,"CAUCA","PIENDAMÓ",19548,null,null,null,"CHOCÓ","SIPÍ",27745,"CÓRDOBA","SAN PELAYO",23686,"CUNDINAMARCA","FOMEQUE",25279,null,null,null,"HUILA","SALADOBLANCO",41660,null,null,null,"MAGDALENA","SITIONUEVO",47745,"META","SAN JUANITO",50686,"NARIÑO","IMUÉS",52354,"NORTE_DE_SANTANDER","PAMPLONITA",54520,null,null,null,null,null,null,null,null,null,"SANTANDER","EL GUACAMAYO",68245,null,null,null,"TOLIMA","MELGAR",73449,"VALLE_DEL_CAUCA","PALMIRA",76520]
["SANTANDER",28,null,null,null,"ANTIOQUIA","CAMPAMENTO",5134,null,null,null,null,null,null,null,null,null,"BOLÍVAR","SAN CRISTÓBAL",13620,"BOYACÁ","CUCAITA",15224,null,null,null,null,null,null,null,null,null,"CAUCA","PUERTO TEJADA",19573,null,null,null,"CHOCÓ","TADÓ",27787,"CÓRDOBA","TIERRALTA",23807,"CUNDINAMARCA","FOSCA",25281,null,null,null,"HUILA","SAN AGUSTÍN",41668,null,null,null,"MAGDALENA","TENERIFE",47798,"META","SAN MARTÍN",20770,"NARIÑO","IPIALES",52356,"NORTE_DE_SANTANDER","PUERTO SANTANDER",91669,null,null,null,null,null,null,null,null,null,"SANTANDER","EL PEÑÓN",13268,null,null,null,"TOLIMA","MURILLO",73461,"VALLE_DEL_CAUCA","PRADERA",76563]
["SUCRE",29,null,null,null,"ANTIOQUIA","CAÑASGORDAS",5138,null,null,null,null,null,null,null,null,null,"BOLÍVAR","SAN ESTANISLAO",13647,"BOYACÁ","CUÍTIVA",15226,null,null,null,null,null,null,null,null,null,"CAUCA","PURACÉ",19585,null,null,null,"CHOCÓ","UNGUÍA",27800,"CÓRDOBA","TUCHÍN",{"$error":"#N/A"},"CUNDINAMARCA","FUNZA",25286,null,null,null,"HUILA","SANTA MARÍA",15690,null,null,null,"MAGDALENA","ZAPAYÁN",47960,"META","VISTA HERMOSA",50711,"NARIÑO","LA CRUZ",52378,"NORTE_DE_SANTANDER","RAGONVALIA",54599,null,null,null,null,null,null,null,null,null,"SANTANDER","EL PLAYÓN",68255,null,null,null,"TOLIMA","NATAGAIMA",73483,"VALLE_DEL_CAUCA","RESTREPO",50606]
["TOLIMA",30,null,null,null,"ANTIOQUIA","CARACOLÍ",5142,null,null,null,null,null,null,null,null,null,"BOLÍVAR","SAN FERNANDO",13650,"BOYACÁ","CHÍQUIZA",15232,null,null,null,null,null,null,null,null,null,"CAUCA","ROSAS",19622,null,null,null,"CHOCÓ","UNIÓN PANAMERICANA",27810,"CÓRDOBA","VALENCIA",23855,"CUNDINAMARCA","FÚQUENE",25288,null,null,null,"HUILA","SUAZA",41770,null,null,null,"MAGDALENA","ZONA BANANERA",47980,null,null,null,"NARIÑO","LA FLORIDA",52381,"NORTE_DE_SANTANDER","SALAZAR",54660,null,null,null,null,null,null,null,null,null,"SANTANDER","ENCINO",68264,null,null,null,"TOLIMA","ORTEGA",73504,"VALLE_DEL_CAUCA","RIOFRÍO",76616]
["VALLE_DEL_CAUCA",31,null,null,null,"ANTIOQUIA","CARAMANTA",5145,null,null,null,null,null,null,null,null,null,"BOLÍVAR","SAN JACINTO",13654,"BOYACÁ","CHIVOR",15236,null,null,null,null,null,null,null,null,null,"CAUCA","SAN SEBASTIÁN",19693,null,null,null,null,null,null,null,null,null,"CUNDINAMARCA","FUSAGASUGÁ",25290,null,null,null,"HUILA","TARQUI",41791,null,null,null,null,null,null,null,null,null,"NARIÑO","LA LLANADA",52385,"NORTE_DE_SANTANDER","SAN CALIXTO",54670,null,null,null,null,null,null,null,null,null,"SANTANDER","ENCISO",68266,null,null,null,"TOLIMA","PALOCABILDO",73520,"VALLE_DEL_CAUCA","ROLDANILLO",76622]
["VAUPÉS",32,null,null,null,"ANTIOQUIA","CAREPA",5147,null,null,null,null,null,null,null,null,null,"BOLÍVAR","SAN JACINTO DEL CAUCA",13655,"BOYACÁ","DUITAMA",15238,null,null,null,null,null,null,null,null,null,"CAUCA","SANTANDER DE QUILICHAO",19698,null,null,null,null,null,null,null,null,null,"CUNDINAMARCA","GACHALÁ",25293,null,null,null,"HUILA","TESALIA",41797,null,null,null,null,null,null,null,null,null,"NARIÑO","LA TOLA",52390,"NORTE_DE_SANTANDER","SAN CAYETANO",25653,null,null,null,null,null,null,null,null,null,"SANTANDER","FLORIÁN",68271,null,null,null,"TOLIMA","PIEDRAS",73547,"VALLE_DEL_CAUCA","SAN PEDRO",70717]
["VICHADA",33,null,null,null,"ANTIOQUIA","EL CARMEN DE VIBORAL",5148,null,null,null,null,null,null,null,null,null,"BOLÍVAR","SAN JUAN NEPOMUCENO",13657,"BOYACÁ","EL COCUY",15244,null,null,null,null,null,null,null,null,null,"CAUCA","SANTA ROSA",13683,null,null,null,null,null,null,null,null,null,"CUNDINAMARCA","GACHANCIPÁ",25295,null,null,null,"HUILA","TELLO",41799,null,null,null,null,null,null,null,null,null,"NARIÑO","LA UNIÓN",5400,"NORTE_DE_SANTANDER","SANTIAGO",54680,null,null,null,null,null,null,null,null,null,"SANTANDER","FLORIDABLANCA",68276,null,null,null,"TOLIMA","PLANADAS",73555,"VALLE_DEL_CAUCA","SEVILLA",76736]
[null,null,null,null,null,"ANTIOQUIA","CAROLINA",5150,null,null,null,null,null,null,null,null,null,"BOLÍVAR","SAN MARTÍN DE LOBA",13667,"BOYACÁ","EL ESPINO",15248,null,null,null,null,null,null,null,null,null,"CAUCA","SILVIA",19743,null,null,null,null,null,null,null,null,null,"CUNDINAMARCA","GACHETÁ",25297,null,null,null,"HUILA","TERUEL",41801,null,null,null,null,null,null,null,null,null,"NARIÑO","LEIVA",52405,"NORTE_DE_SANTANDER","SARDINATA",54720,null,null,null,null,null,null,null,null,null,"SANTANDER","GALÁN",68296,null,null,null,"TOLIMA","PRADO",73563,"VALLE_DEL_CAUCA","TORO",76823]
[null,null,null,null,null,"ANTIOQUIA","CAUCASIA",5154,null,null,null,null,null,null,null,null,null,"BOLÍVAR","SAN PABLO",13670,"BOYACÁ","FIRAVITOBA",15272,null,null,null,null,null,null,null,null,null,"CAUCA","SOTARÁ",19760,null,null,null,null,null,null,null,null,null,"CUNDINAMARCA","GAMA",25299,null,null,null,"HUILA","TIMANÁ",41807,null,null,null,null,null,null,null,null,null,"NARIÑO","LINARES",52411,"NORTE_DE_SANTANDER","SILOS",54743,null,null,null,null,null,null,null,null,null,"SANTANDER","GAMBITA",68298,null,null,null,"TOLIMA","PURIFICACIÓN",73585,"VALLE_DEL_CAUCA","TRUJILLO",76828]
[null,null,null,null,null,"ANTIOQUIA","CHIGORODÓ",5172,null,null,null,null,null,null,null,null,null,"BOLÍVAR","SANTA CATALINA",13673,"BOYACÁ","FLORESTA",15276,null,null,null,null,null,null,null,null,null,"CAUCA","SUÁREZ",19780,null,null,null,null,null,null,null,null,null,"CUNDINAMARCA","GIRARDOT",25307,null,null,null,"HUILA","VILLAVIEJA",41872,null,null,null,null,null,null,null,null,null,"NARIÑO","LOS ANDES",52418,"NORTE_DE_SANTANDER","TEORAMA",54800,null,null,null,null,null,null,null,null,null,"SANTANDER","GIRÓN",68307,null,null,null,"TOLIMA","RIOBLANCO",73616,"VALLE_DEL_CAUCA","TULUÁ",76834]
[null,null,null,null,null,"ANTIOQUIA","CISNEROS",5190,null,null,null,null,null,null,null,null,null,"BOLÍVAR","SANTA ROSA",13683,"BOYACÁ","GACHANTIVÁ",15293,null,null,null,null,null,null,null,null,null,"CAUCA","SUCRE",19785,null,null,null,null,null,null,null,null,null,"CUNDINAMARCA","GRANADA",5313,null,null,null,"HUILA","YAGUARÁ",41885,null,null,null,null,null,null,null,null,null,"NARIÑO","MAGÜI",52427,"NORTE_DE_SANTANDER","TIBÚ",54810,null,null,null,null,null,null,null,null,null,"SANTANDER","GUACA",68318,null,null,null,"TOLIMA","RONCESVALLES",73622,"VALLE_DEL_CAUCA","ULLOA",76845]
[null,null,null,null,null,"ANTIOQUIA","COCORNÁ",5197,null,null,null,null,null,null,null,null,null,"BOLÍVAR","SANTA ROSA DEL SUR",13688,"BOYACÁ","GAMEZA",15296,null,null,null,null,null,null,null,null,null,"CAUCA","TIMBÍO",19807,null,null,null,null,null,null,null,null,null,"CUNDINAMARCA","GUACHETÁ",25317,null,null,null,null,null,null,null,null,null,null,null,null,null,null,null,"NARIÑO","MALLAMA",52435,"NORTE_DE_SANTANDER","TOLEDO",5819,null,null,null,null,null,null,null,null,null,"SANTANDER","GUADALUPE",5315,null,null,null,"TOLIMA","ROVIRA",73624,"VALLE_DEL_CAUCA","VERSALLES",76863]
[null,null,null,null,null,"ANTIOQUIA","CONCEPCIÓN",5206,null,null,null,null,null,null,null,null,null,"BOLÍVAR","SIMITÍ",13744,"BOYACÁ","GARAGOA",15299,null,null,null,null,null,null,null,null,null,"CAUCA","TIMBIQUÍ",19809,null,null,null,null,null,null,null,null,null,"CUNDINAMARCA","GUADUAS",25320,null,null,null,null,null,null,null,null,null,null,null,null,null,null,null,"NARIÑO","MOSQUERA",25473,"NORTE_DE_SANTANDER","VILLA CARO",54871,null,null,null,null,null,null,null,null,null,"SANTANDER","GUAPOTÁ",68322,null,null,null,"TOLIMA","SALDAÑA",73671,"VALLE_DEL_CAUCA","VIJES",76869]
[null,null,null,null,null,"ANTIOQUIA","CONCORDIA",5209,null,null,null,null,null,null,null,null,null,"BOLÍVAR","SOPLAVIENTO",13760,"BOYACÁ","GUACAMAYAS",15317,null,null,null,null,null,null,null,null,null,"CAUCA","TORIBIO",19821,null,null,null,null,null,null,null,null,null,"CUNDINAMARCA","GUASCA",25322,null,null,null,null,null,null,null,null,null,null,null,null,null,null,null,"NARIÑO","NARIÑO",5483,"NORTE_DE_SANTANDER","VILLA DEL ROSARIO",54874,null,null,null,null,null,null,null,null,null,"SANTANDER","GUAVATÁ",68324,null,null,null,"TOLIMA","SAN ANTONIO",73675,"VALLE_DEL_CAUCA","YOTOCO",76890]
[null,null,null,null,null,"ANTIOQUIA","COPACABANA",5212,null,null,null,null,null,null,null,null,null,"BOLÍVAR","TALAIGUA NUEVO",13780,"BOYACÁ","GUATEQUE",15322,null,null,null,null,null,null,null,null,null,"CAUCA","TOTORÓ",19824,null,null,null,null,null,null,null,null,null,"CUNDINAMARCA","GUATAQUÍ",25324,null,null,null,null,null,null,null,null,null,null,null,null,null,null,null,"NARIÑO","OLAYA HERRERA",52490,null,null,null,null,null,null,null,null,null,null,null,null,"SANTANDER","GÜEPSA",68327,null,null,null,"TOLIMA","SAN LUIS",5660,"VALLE_DEL_CAUCA","YUMBO",76892]
[null,null,null,null,null,"ANTIOQUIA","DABEIBA",5234,null,null,null,null,null,null,null,null,null,"BOLÍVAR","TIQUISIO",13810,"BOYACÁ","GUAYATÁ",15325,null,null,null,null,null,null,null,null,null,"CAUCA","VILLA RICA",19845,null,null,null,null,null,null,null,null,null,"CUNDINAMARCA","GUATAVITA",25326,null,null,null,null,null,null,null,null,null,null,null,null,null,null,null,"NARIÑO","OSPINA",52506,null,null,null,null,null,null,null,null,null,null,null,null,"SANTANDER","HATO",68344,null,null,null,"TOLIMA","SANTA ISABEL",73686,"VALLE_DEL_CAUCA","ZARZAL",76895]
[null,null,null,null,null,"ANTIOQUIA","DONMATÍAS",5237,null,null,null,null,null,null,null,null,null,"BOLÍVAR","TURBACO",13836,"BOYACÁ","GÜICÁN",15332,null,null,null,null,null,null,null,null,null,null,null,null,null,null,null,null,null,null,null,null,null,"CUNDINAMARCA","GUAYABAL DE SÍQUIMA",25328,null,null,null,null,null,null,null,null,null,null,null,null,null,null,null,"NARIÑO","FRANCISCO PIZARRO",52520,null,null,null,null,null,null,null,null,null,null,null,null,"SANTANDER","JESÚS MARÍA",68368,null,null,null,"TOLIMA","SUÁREZ",19780]
[null,null,null,null,null,"ANTIOQUIA","EBÉJICO",5240,null,null,null,null,null,null,null,null,null,"BOLÍVAR","TURBANÁ",13838,"BOYACÁ","IZA",15362,null,null,null,null,null,null,null,null,null,null,null,null,null,null,null,null,null,null,null,null,null,"CUNDINAMARCA","GUAYABETAL",25335,null,null,null,null,null,null,null,null,null,null,null,null,null,null,null,"NARIÑO","POLICARPA",52540,null,null,null,null,null,null,null,null,null,null,null,null,"SANTANDER","JORDÁN",68370,null,null,null,"TOLIMA","VALLE DE SAN JUAN",73854]
[null,null,null,null,null,"ANTIOQUIA","EL BAGRE",5250,null,null,null,null,null,null,null,null,null,"BOLÍVAR","VILLANUEVA",13873,"BOYACÁ","JENESANO",15367,null,null,null,null,null,null,null,null,null,null,null,null,null,null,null,null,null,null,null,null,null,"CUNDINAMARCA","GUTIÉRREZ",25339,null,null,null,null,null,null,null,null,null,null,null,null,null,null,null,"NARIÑO","POTOSÍ",52560,null,null,null,null,null,null,null,null,null,null,null,null,"SANTANDER","LA BELLEZA",68377,null,null,null,"TOLIMA","VENADILLO",73861]
[null,null,null,null,null,"ANTIOQUIA","ENTRERRÍOS",5264,null,null,null,null,null,null,null,null,null,"BOLÍVAR","ZAMBRANO",13894,"BOYACÁ","JERICÓ",5368,null,null,null,null,null,null,null,null,null,null,null,null,null,null,null,null,null,null,null,null,null,"CUNDINAMARCA","JERUSALÉN",25368,null,null,null,null,null,null,null,null,null,null,null,null,null,null,null,"NARIÑO","PROVIDENCIA",52565,null,null,null,null,null,null,null,null,null,null,null,null,"SANTANDER","LANDÁZURI",68385,null,null,null,"TOLIMA","VILLAHERMOSA",73870]
[null,null,null,null,null,"ANTIOQUIA","ENVIGADO",5266,null,null,null,null,null,null,null,null,null,null,null,null,"BOYACÁ","LABRANZAGRANDE",15377,null,null,null,null,null,null,null,null,null,null,null,null,null,null,null,null,null,null,null,null,null,"CUNDINAMARCA","JUNÍN",25372,null,null,null,null,null,null,null,null,null,null,null,null,null,null,null,"NARIÑO","PUERRES",52573,null,null,null,null,null,null,null,null,null,null,null,null,"SANTANDER","LA PAZ",20621,null,null,null,"TOLIMA","VILLARRICA",73873]
[null,null,null,null,null,"ANTIOQUIA","FREDONIA",5282,null,null,null,null,null,null,null,null,null,null,null,null,"BOYACÁ","LA CAPILLA",15380,null,null,null,null,null,null,null,null,null,null,null,null,null,null,null,null,null,null,null,null,null,"CUNDINAMARCA","LA CALERA",25377,null,null,null,null,null,null,null,null,null,null,null,null,null,null,null,"NARIÑO","PUPIALES",52585,null,null,null,null,null,null,null,null,null,null,null,null,"SANTANDER","LEBRIJA",68406]
[null,null,null,null,null,"ANTIOQUIA","FRONTINO",5284,null,null,null,null,null,null,null,null,null,null,null,null,"BOYACÁ","LA VICTORIA",91430,null,null,null,null,null,null,null,null,null,null,null,null,null,null,null,null,null,null,null,null,null,"CUNDINAMARCA","LA MESA",25386,null,null,null,null,null,null,null,null,null,null,null,null,null,null,null,"NARIÑO","RICAURTE",25612,null,null,null,null,null,null,null,null,null,null,null,null,"SANTANDER","LOS SANTOS",68418]
[null,null,null,null,null,"ANTIOQUIA","GIRALDO",5306,null,null,null,null,null,null,null,null,null,null,null,null,"BOYACÁ","LA UVITA",15403,null,null,null,null,null,null,null,null,null,null,null,null,null,null,null,null,null,null,null,null,null,"CUNDINAMARCA","LA PALMA",25394,null,null,null,null,null,null,null,null,null,null,null,null,null,null,null,"NARIÑO","ROBERTO PAYÁN",52621,null,null,null,null,null,null,null,null,null,null,null,null,"SANTANDER","MACARAVITA",68425]
[null,null,null,null,null,"ANTIOQUIA","GIRARDOTA",5308,null,null,null,null,null,null,null,null,null,null,null,null,"BOYACÁ","VILLA DE LEYVA",15407,null,null,null,null,null,null,null,null,null,null,null,null,null,null,null,null,null,null,null,null,null,"CUNDINAMARCA","LA PEÑA",25398,null,null,null,null,null,null,null,null,null,null,null,null,null,null,null,"NARIÑO","SAMANIEGO",52678,null,null,null,null,null,null,null,null,null,null,null,null,"SANTANDER","MÁLAGA",68432]
[null,null,null,null,null,"ANTIOQUIA","GÓMEZ PLATA",5310,null,null,null,null,null,null,null,null,null,null,null,null,"BOYACÁ","MACANAL",15425,null,null,null,null,null,null,null,null,null,null,null,null,null,null,null,null,null,null,null,null,null,"CUNDINAMARCA","LA VEGA",19397,null,null,null,null,null,null,null,null,null,null,null,null,null,null,null,"NARIÑO","SANDONÁ",52683,null,null,null,null,null,null,null,null,null,null,null,null,"SANTANDER","MATANZA",68444]
[null,null,null,null,null,"ANTIOQUIA","GRANADA",5313,null,null,null,null,null,null,null,null,null,null,null,null,"BOYACÁ","MARIPÍ",15442,null,null,null,null,null,null,null,null,null,null,null,null,null,null,null,null,null,null,null,null,null,"CUNDINAMARCA","LENGUAZAQUE",25407,null,null,null,null,null,null,null,null,null,null,null,null,null,null,null,"NARIÑO","SAN BERNARDO",25649,null,null,null,null,null,null,null,null,null,null,null,null,"SANTANDER","MOGOTES",68464]
[null,null,null,null,null,"ANTIOQUIA","GUADALUPE",5315,null,null,null,null,null,null,null,null,null,null,null,null,"BOYACÁ","MIRAFLORES",15455,null,null,null,null,null,null,null,null,null,null,null,null,null,null,null,null,null,null,null,null,null,"CUNDINAMARCA","MACHETA",25426,null,null,null,null,null,null,null,null,null,null,null,null,null,null,null,"NARIÑO","SAN LORENZO",52687,null,null,null,null,null,null,null,null,null,null,null,null,"SANTANDER","MOLAGAVITA",68468]
[null,null,null,null,null,"ANTIOQUIA","GUARNE",5318,null,null,null,null,null,null,null,null,null,null,null,null,"BOYACÁ","MONGUA",15464,null,null,null,null,null,null,null,null,null,null,null,null,null,null,null,null,null,null,null,null,null,"CUNDINAMARCA","MADRID",25430,null,null,null,null,null,null,null,null,null,null,null,null,null,null,null,"NARIÑO","SAN PABLO",13670,null,null,null,null,null,null,null,null,null,null,null,null,"SANTANDER","OCAMONTE",68498]
[null,null,null,null,null,"ANTIOQUIA","GUATAPÉ",5321,null,null,null,null,null,null,null,null,null,null,null,null,"BOYACÁ","MONGUÍ",15466,null,null,null,null,null,null,null,null,null,null,null,null,null,null,null,null,null,null,null,null,null,"CUNDINAMARCA","MANTA",25436,null,null,null,null,null,null,null,null,null,null,null,null,null,null,null,"NARIÑO","SAN PEDRO DE CARTAGO",52694,null,null,null,null,null,null,null,null,null,null,null,null,"SANTANDER","OIBA",68500]
[null,null,null,null,null,"ANTIOQUIA","HELICONIA",5347,null,null,null,null,null,null,null,null,null,null,null,null,"BOYACÁ","MONIQUIRÁ",15469,null,null,null,null,null,null,null,null,null,null,null,null,null,null,null,null,null,null,null,null,null,"CUNDINAMARCA","MEDINA",25438,null,null,null,null,null,null,null,null,null,null,null,null,null,null,null,"NARIÑO","SANTA BÁRBARA",5679,null,null,null,null,null,null,null,null,null,null,null,null,"SANTANDER","ONZAGA",68502]
[null,null,null,null,null,"ANTIOQUIA","HISPANIA",5353,null,null,null,null,null,null,null,null,null,null,null,null,"BOYACÁ","MOTAVITA",15476,null,null,null,null,null,null,null,null,null,null,null,null,null,null,null,null,null,null,null,null,null,"CUNDINAMARCA","MOSQUERA",25473,null,null,null,null,null,null,null,null,null,null,null,null,null,null,null,"NARIÑO","SANTACRUZ",52699,null,null,null,null,null,null,null,null,null,null,null,null,"SANTANDER","PALMAR",68522]
[null,null,null,null,null,"ANTIOQUIA","ITAGÜÍ",5360,null,null,null,null,null,null,null,null,null,null,null,null,"BOYACÁ","MUZO",15480,null,null,null,null,null,null,null,null,null,null,null,null,null,null,null,null,null,null,null,null,null,"CUNDINAMARCA","NARIÑO",5483,null,null,null,null,null,null,null,null,null,null,null,null,null,null,null,"NARIÑO","SAPUYES",52720,null,null,null,null,null,null,null,null,null,null,null,null,"SANTANDER","PALMAS DEL SOCORRO",68524]
[null,null,null,null,null,"ANTIOQUIA","ITUANGO",5361,null,null,null,null,null,null,null,null,null,null,null,null,"BOYACÁ","NOBSA",15491,null,null,null,null,null,null,null,null,null,null,null,null,null,null,null,null,null,null,null,null,null,"CUNDINAMARCA","NEMOCÓN",25486,null,null,null,null,null,null,null,null,null,null,null,null,null,null,null,"NARIÑO","TAMINANGO",52786,null,null,null,null,null,null,null,null,null,null,null,null,"SANTANDER","PÁRAMO",68533]
[null,null,null,null,null,"ANTIOQUIA","JARDÍN",5364,null,null,null,null,null,null,null,null,null,null,null,null,"BOYACÁ","NUEVO COLÓN",15494,null,null,null,null,null,null,null,null,null,null,null,null,null,null,null,null,null,null,null,null,null,"CUNDINAMARCA","NILO",25488,null,null,null,null,null,null,null,null,null,null,null,null,null,null,null,"NARIÑO","TANGUA",52788,null,null,null,null,null,null,null,null,null,null,null,null,"SANTANDER","PIEDECUESTA",68547]
[null,null,null,null,null,"ANTIOQUIA","JERICÓ",5368,null,null,null,null,null,null,null,null,null,null,null,null,"BOYACÁ","OICATÁ",15500,null,null,null,null,null,null,null,null,null,null,null,null,null,null,null,null,null,null,null,null,null,"CUNDINAMARCA","NIMAIMA",25489,null,null,null,null,null,null,null,null,null,null,null,null,null,null,null,"NARIÑO","SAN ANDRES DE TUMACO",52835,null,null,null,null,null,null,null,null,null,null,null,null,"SANTANDER","PINCHOTE",68549]
[null,null,null,null,null,"ANTIOQUIA","LA CEJA",5376,null,null,null,null,null,null,null,null,null,null,null,null,"BOYACÁ","OTANCHE",15507,null,null,null,null,null,null,null,null,null,null,null,null,null,null,null,null,null,null,null,null,null,"CUNDINAMARCA","NOCAIMA",25491,null,null,null,null,null,null,null,null,null,null,null,null,null,null,null,"NARIÑO","TÚQUERRES",52838,null,null,null,null,null,null,null,null,null,null,null,null,"SANTANDER","PUENTE NACIONAL",68572]
[null,null,null,null,null,"ANTIOQUIA","LA ESTRELLA",5380,null,null,null,null,null,null,null,null,null,null,null,null,"BOYACÁ","PACHAVITA",15511,null,null,null,null,null,null,null,null,null,null,null,null,null,null,null,null,null,null,null,null,null,"CUNDINAMARCA","VENECIA",5861,null,null,null,null,null,null,null,null,null,null,null,null,null,null,null,"NARIÑO","YACUANQUER",52885,null,null,null,null,null,null,null,null,null,null,null,null,"SANTANDER","PUERTO PARRA",68573]
[null,null,null,null,null,"ANTIOQUIA","LA PINTADA",5390,null,null,null,null,null,null,null,null,null,null,null,null,"BOYACÁ","PÁEZ",15514,null,null,null,null,null,null,null,null,null,null,null,null,null,null,null,null,null,null,null,null,null,"CUNDINAMARCA","PACHO",25513,null,null,null,null,null,null,null,null,null,null,null,null,null,null,null,null,null,null,null,null,null,null,null,null,null,null,null,null,null,null,"SANTANDER","PUERTO WILCHES",68575]
[null,null,null,null,null,"ANTIOQUIA","LA UNIÓN",5400,null,null,null,null,null,null,null,null,null,null,null,null,"BOYACÁ","PAIPA",15516,null,null,null,null,null,null,null,null,null,null,null,null,null,null,null,null,null,null,null,null,null,"CUNDINAMARCA","PAIME",25518,null,null,null,null,null,null,null,null,null,null,null,null,null,null,null,null,null,null,null,null,null,null,null,null,null,null,null,null,null,null,"SANTANDER","RIONEGRO",5615]
[null,null,null,null,null,"ANTIOQUIA","LIBORINA",5411,null,null,null,null,null,null,null,null,null,null,null,null,"BOYACÁ","PAJARITO",15518,null,null,null,null,null,null,null,null,null,null,null,null,null,null,null,null,null,null,null,null,null,"CUNDINAMARCA","PANDI",25524,null,null,null,null,null,null,null,null,null,null,null,null,null,null,null,null,null,null,null,null,null,null,null,null,null,null,null,null,null,null,"SANTANDER","SABANA DE TORRES",68655]
[null,null,null,null,null,"ANTIOQUIA","MACEO",5425,null,null,null,null,null,null,null,null,null,null,null,null,"BOYACÁ","PANQUEBA",15522,null,null,null,null,null,null,null,null,null,null,null,null,null,null,null,null,null,null,null,null,null,"CUNDINAMARCA","PARATEBUENO",25530,null,null,null,null,null,null,null,null,null,null,null,null,null,null,null,null,null,null,null,null,null,null,null,null,null,null,null,null,null,null,"SANTANDER","SAN ANDRÉS",88001]
[null,null,null,null,null,"ANTIOQUIA","MARINILLA",5440,null,null,null,null,null,null,null,null,null,null,null,null,"BOYACÁ","PAUNA",15531,null,null,null,null,null,null,null,null,null,null,null,null,null,null,null,null,null,null,null,null,null,"CUNDINAMARCA","PASCA",25535,null,null,null,null,null,null,null,null,null,null,null,null,null,null,null,null,null,null,null,null,null,null,null,null,null,null,null,null,null,null,"SANTANDER","SAN BENITO",68673]
[null,null,null,null,null,"ANTIOQUIA","MONTEBELLO",5467,null,null,null,null,null,null,null,null,null,null,null,null,"BOYACÁ","PAYA",15533,null,null,null,null,null,null,null,null,null,null,null,null,null,null,null,null,null,null,null,null,null,"CUNDINAMARCA","PUERTO SALGAR",25572,null,null,null,null,null,null,null,null,null,null,null,null,null,null,null,null,null,null,null,null,null,null,null,null,null,null,null,null,null,null,"SANTANDER","SAN GIL",68679]
[null,null,null,null,null,"ANTIOQUIA","MURINDÓ",5475,null,null,null,null,null,null,null,null,null,null,null,null,"BOYACÁ","PAZ DE RÍO",15537,null,null,null,null,null,null,null,null,null,null,null,null,null,null,null,null,null,null,null,null,null,"CUNDINAMARCA","PULÍ",25580,null,null,null,null,null,null,null,null,null,null,null,null,null,null,null,null,null,null,null,null,null,null,null,null,null,null,null,null,null,null,"SANTANDER","SAN JOAQUÍN",68682]
[null,null,null,null,null,"ANTIOQUIA","MUTATÁ",5480,null,null,null,null,null,null,null,null,null,null,null,null,"BOYACÁ","PESCA",15542,null,null,null,null,null,null,null,null,null,null,null,null,null,null,null,null,null,null,null,null,null,"CUNDINAMARCA","QUEBRADANEGRA",25592,null,null,null,null,null,null,null,null,null,null,null,null,null,null,null,null,null,null,null,null,null,null,null,null,null,null,null,null,null,null,"SANTANDER","SAN JOSÉ DE MIRANDA",68684]
[null,null,null,null,null,"ANTIOQUIA","NARIÑO",5483,null,null,null,null,null,null,null,null,null,null,null,null,"BOYACÁ","PISBA",15550,null,null,null,null,null,null,null,null,null,null,null,null,null,null,null,null,null,null,null,null,null,"CUNDINAMARCA","QUETAME",25594,null,null,null,null,null,null,null,null,null,null,null,null,null,null,null,null,null,null,null,null,null,null,null,null,null,null,null,null,null,null,"SANTANDER","SAN MIGUEL",86757]
[null,null,null,null,null,"ANTIOQUIA","NECOCLÍ",5490,null,null,null,null,null,null,null,null,null,null,null,null,"BOYACÁ","PUERTO BOYACÁ",15572,null,null,null,null,null,null,null,null,null,null,null,null,null,null,null,null,null,null,null,null,null,"CUNDINAMARCA","QUIPILE",25596,null,null,null,null,null,null,null,null,null,null,null,null,null,null,null,null,null,null,null,null,null,null,null,null,null,null,null,null,null,null,"SANTANDER","SAN VICENTE DE CHUCURÍ",68689]
[null,null,null,null,null,"ANTIOQUIA","NECHÍ",5495,null,null,null,null,null,null,null,null,null,null,null,null,"BOYACÁ","QUÍPAMA",15580,null,null,null,null,null,null,null,null,null,null,null,null,null,null,null,null,null,null,null,null,null,"CUNDINAMARCA","APULO",25599,null,null,null,null,null,null,null,null,null,null,null,null,null,null,null,null,null,null,null,null,null,null,null,null,null,null,null,null,null,null,"SANTANDER","SANTA BÁRBARA",5679]
[null,null,null,null,null,"ANTIOQUIA","OLAYA",5501,null,null,null,null,null,null,null,null,null,null,null,null,"BOYACÁ","RAMIRIQUÍ",15599,null,null,null,null,null,null,null,null,null,null,null,null,null,null,null,null,null,null,null,null,null,"CUNDINAMARCA","RICAURTE",25612,null,null,null,null,null,null,null,null,null,null,null,null,null,null,null,null,null,null,null,null,null,null,null,null,null,null,null,null,null,null,"SANTANDER","SANTA HELENA DEL OPÓN",68720]
[null,null,null,null,null,"ANTIOQUIA","PEÑOL",5541,null,null,null,null,null,null,null,null,null,null,null,null,"BOYACÁ","RÁQUIRA",15600,null,null,null,null,null,null,null,null,null,null,null,null,null,null,null,null,null,null,null,null,null,"CUNDINAMARCA","SAN ANTONIO DEL TEQUENDAMA",25645,null,null,null,null,null,null,null,null,null,null,null,null,null,null,null,null,null,null,null,null,null,null,null,null,null,null,null,null,null,null,"SANTANDER","SIMACOTA",68745]
[null,null,null,null,null,"ANTIOQUIA","PEQUE",5543,null,null,null,null,null,null,null,null,null,null,null,null,"BOYACÁ","RONDÓN",15621,null,null,null,null,null,null,null,null,null,null,null,null,null,null,null,null,null,null,null,null,null,"CUNDINAMARCA","SAN BERNARDO",25649,null,null,null,null,null,null,null,null,null,null,null,null,null,null,null,null,null,null,null,null,null,null,null,null,null,null,null,null,null,null,"SANTANDER","SOCORRO",68755]
[null,null,null,null,null,"ANTIOQUIA","PUEBLORRICO",5576,null,null,null,null,null,null,null,null,null,null,null,null,"BOYACÁ","SABOYÁ",15632,null,null,null,null,null,null,null,null,null,null,null,null,null,null,null,null,null,null,null,null,null,"CUNDINAMARCA","SAN CAYETANO",25653,null,null,null,null,null,null,null,null,null,null,null,null,null,null,null,null,null,null,null,null,null,null,null,null,null,null,null,null,null,null,"SANTANDER","SUAITA",68770]
[null,null,null,null,null,"ANTIOQUIA","PUERTO BERRÍO",5579,null,null,null,null,null,null,null,null,null,null,null,null,"BOYACÁ","SÁCHICA",15638,null,null,null,null,null,null,null,null,null,null,null,null,null,null,null,null,null,null,null,null,null,"CUNDINAMARCA","SAN FRANCISCO",5652,null,null,null,null,null,null,null,null,null,null,null,null,null,null,null,null,null,null,null,null,null,null,null,null,null,null,null,null,null,null,"SANTANDER","SUCRE",19785]
[null,null,null,null,null,"ANTIOQUIA","PUERTO NARE",5585,null,null,null,null,null,null,null,null,null,null,null,null,"BOYACÁ","SAMACÁ",15646,null,null,null,null,null,null,null,null,null,null,null,null,null,null,null,null,null,null,null,null,null,"CUNDINAMARCA","SAN JUAN DE RÍO SECO",25662,null,null,null,null,null,null,null,null,null,null,null,null,null,null,null,null,null,null,null,null,null,null,null,null,null,null,null,null,null,null,"SANTANDER","SURATÁ",68780]
[null,null,null,null,null,"ANTIOQUIA","PUERTO TRIUNFO",5591,null,null,null,null,null,null,null,null,null,null,null,null,"BOYACÁ","SAN EDUARDO",15660,null,null,null,null,null,null,null,null,null,null,null,null,null,null,null,null,null,null,null,null,null,"CUNDINAMARCA","SASAIMA",25718,null,null,null,null,null,null,null,null,null,null,null,null,null,null,null,null,null,null,null,null,null,null,null,null,null,null,null,null,null,null,"SANTANDER","TONA",68820]
[null,null,null,null,null,"ANTIOQUIA","REMEDIOS",5604,null,null,null,null,null,null,null,null,null,null,null,null,"BOYACÁ","SAN JOSÉ DE PARE",15664,null,null,null,null,null,null,null,null,null,null,null,null,null,null,null,null,null,null,null,null,null,"CUNDINAMARCA","SESQUILÉ",25736,null,null,null,null,null,null,null,null,null,null,null,null,null,null,null,null,null,null,null,null,null,null,null,null,null,null,null,null,null,null,"SANTANDER","VALLE DE SAN JOSÉ",68855]
[null,null,null,null,null,"ANTIOQUIA","RETIRO",5607,null,null,null,null,null,null,null,null,null,null,null,null,"BOYACÁ","SAN LUIS DE GACENO",15667,null,null,null,null,null,null,null,null,null,null,null,null,null,null,null,null,null,null,null,null,null,"CUNDINAMARCA","SIBATÉ",25740,null,null,null,null,null,null,null,null,null,null,null,null,null,null,null,null,null,null,null,null,null,null,null,null,null,null,null,null,null,null,"SANTANDER","VÉLEZ",68861]
[null,null,null,null,null,"ANTIOQUIA","RIONEGRO",5615,null,null,null,null,null,null,null,null,null,null,null,null,"BOYACÁ","SAN MATEO",15673,null,null,null,null,null,null,null,null,null,null,null,null,null,null,null,null,null,null,null,null,null,"CUNDINAMARCA","SILVANIA",25743,null,null,null,null,null,null,null,null,null,null,null,null,null,null,null,null,null,null,null,null,null,null,null,null,null,null,null,null,null,null,"SANTANDER","VETAS",68867]
[null,null,null,null,null,"ANTIOQUIA","SABANALARGA",5628,null,null,null,null,null,null,null,null,null,null,null,null,"BOYACÁ","SAN MIGUEL DE SEMA",15676,null,null,null,null,null,null,null,null,null,null,null,null,null,null,null,null,null,null,null,null,null,"CUNDINAMARCA","SIMIJACA",25745,null,null,null,null,null,null,null,null,null,null,null,null,null,null,null,null,null,null,null,null,null,null,null,null,null,null,null,null,null,null,"SANTANDER","VILLANUEVA",13873]
[null,null,null,null,null,"ANTIOQUIA","SABANETA",5631,null,null,null,null,null,null,null,null,null,null,null,null,"BOYACÁ","SAN PABLO DE BORBUR",15681,null,null,null,null,null,null,null,null,null,null,null,null,null,null,null,null,null,null,null,null,null,"CUNDINAMARCA","SOACHA",25754,null,null,null,null,null,null,null,null,null,null,null,null,null,null,null,null,null,null,null,null,null,null,null,null,null,null,null,null,null,null,"SANTANDER","ZAPATOCA",68895]
[null,null,null,null,null,"ANTIOQUIA","SALGAR",5642,null,null,null,null,null,null,null,null,null,null,null,null,"BOYACÁ","SANTANA",15686,null,null,null,null,null,null,null,null,null,null,null,null,null,null,null,null,null,null,null,null,null,"CUNDINAMARCA","SOPÓ",25758]
[null,null,null,null,null,"ANTIOQUIA","SAN ANDRÉS DE CUERQUÍA",5647,null,null,null,null,null,null,null,null,null,null,null,null,"BOYACÁ","SANTA MARÍA",15690,null,null,null,null,null,null,null,null,null,null,null,null,null,null,null,null,null,null,null,null,null,"CUNDINAMARCA","SUBACHOQUE",25769]
[null,null,null,null,null,"ANTIOQUIA","SAN CARLOS",5649,null,null,null,null,null,null,null,null,null,null,null,null,"BOYACÁ","SANTA ROSA DE VITERBO",15693,null,null,null,null,null,null,null,null,null,null,null,null,null,null,null,null,null,null,null,null,null,"CUNDINAMARCA","SUESCA",25772]
[null,null,null,null,null,"ANTIOQUIA","SAN FRANCISCO",5652,null,null,null,null,null,null,null,null,null,null,null,null,"BOYACÁ","SANTA SOFÍA",15696,null,null,null,null,null,null,null,null,null,null,null,null,null,null,null,null,null,null,null,null,null,"CUNDINAMARCA","SUPATÁ",25777]
[null,null,null,null,null,"ANTIOQUIA","SAN JERÓNIMO",5656,null,null,null,null,null,null,null,null,null,null,null,null,"BOYACÁ","SATIVANORTE",15720,null,null,null,null,null,null,null,null,null,null,null,null,null,null,null,null,null,null,null,null,null,"CUNDINAMARCA","SUSA",25779]
[null,null,null,null,null,"ANTIOQUIA","SAN JOSÉ DE LA MONTAÑA",5658,null,null,null,null,null,null,null,null,null,null,null,null,"BOYACÁ","SATIVASUR",15723,null,null,null,null,null,null,null,null,null,null,null,null,null,null,null,null,null,null,null,null,null,"CUNDINAMARCA","SUTATAUSA",25781]
[null,null,null,null,null,"ANTIOQUIA","SAN JUAN DE URABÁ",5659,null,null,null,null,null,null,null,null,null,null,null,null,"BOYACÁ","SIACHOQUE",15740,null,null,null,null,null,null,null,null,null,null,null,null,null,null,null,null,null,null,null,null,null,"CUNDINAMARCA","TABIO",25785]
[null,null,null,null,null,"ANTIOQUIA","SAN LUIS",5660,null,null,null,null,null,null,null,null,null,null,null,null,"BOYACÁ","SOATÁ",15753,null,null,null,null,null,null,null,null,null,null,null,null,null,null,null,null,null,null,null,null,null,"CUNDINAMARCA","TAUSA",25793]
[null,null,null,null,null,"ANTIOQUIA","SAN PEDRO DE LOS MILAGROS",5664,null,null,null,null,null,null,null,null,null,null,null,null,"BOYACÁ","SOCOTÁ",15755,null,null,null,null,null,null,null,null,null,null,null,null,null,null,null,null,null,null,null,null,null,"CUNDINAMARCA","TENA",25797]
[null,null,null,null,null,"ANTIOQUIA","SAN PEDRO DE URABÁ",5665,null,null,null,null,null,null,null,null,null,null,null,null,"BOYACÁ","SOCHA",15757,null,null,null,null,null,null,null,null,null,null,null,null,null,null,null,null,null,null,null,null,null,"CUNDINAMARCA","TENJO",25799]
[null,null,null,null,null,"ANTIOQUIA","SAN RAFAEL",5667,null,null,null,null,null,null,null,null,null,null,null,null,"BOYACÁ","SOGAMOSO",15759,null,null,null,null,null,null,null,null,null,null,null,null,null,null,null,null,null,null,null,null,null,"CUNDINAMARCA","TIBACUY",25805]
[null,null,null,null,null,"ANTIOQUIA","SAN ROQUE",5670,null,null,null,null,null,null,null,null,null,null,null,null,"BOYACÁ","SOMONDOCO",15761,null,null,null,null,null,null,null,null,null,null,null,null,null,null,null,null,null,null,null,null,null,"CUNDINAMARCA","TIBIRITA",25807]
[null,null,null,null,null,"ANTIOQUIA","SAN VICENTE FERRER",5674,null,null,null,null,null,null,null,null,null,null,null,null,"BOYACÁ","SORA",15762,null,null,null,null,null,null,null,null,null,null,null,null,null,null,null,null,null,null,null,null,null,"CUNDINAMARCA","TOCAIMA",25815]
[null,null,null,null,null,"ANTIOQUIA","SANTA BÁRBARA",5679,null,null,null,null,null,null,null,null,null,null,null,null,"BOYACÁ","SOTAQUIRÁ",15763,null,null,null,null,null,null,null,null,null,null,null,null,null,null,null,null,null,null,null,null,null,"CUNDINAMARCA","TOCANCIPÁ",25817]
[null,null,null,null,null,"ANTIOQUIA","SANTA ROSA DE OSOS",5686,null,null,null,null,null,null,null,null,null,null,null,null,"BOYACÁ","SORACÁ",15764,null,null,null,null,null,null,null,null,null,null,null,null,null,null,null,null,null,null,null,null,null,"CUNDINAMARCA","TOPAIPÍ",25823]
[null,null,null,null,null,"ANTIOQUIA","SANTO DOMINGO",5690,null,null,null,null,null,null,null,null,null,null,null,null,"BOYACÁ","SUSACÓN",15774,null,null,null,null,null,null,null,null,null,null,null,null,null,null,null,null,null,null,null,null,null,"CUNDINAMARCA","UBALÁ",25839]
[null,null,null,null,null,"ANTIOQUIA","EL SANTUARIO",5697,null,null,null,null,null,null,null,null,null,null,null,null,"BOYACÁ","SUTAMARCHÁN",15776,null,null,null,null,null,null,null,null,null,null,null,null,null,null,null,null,null,null,null,null,null,"CUNDINAMARCA","UBAQUE",25841]
[null,null,null,null,null,"ANTIOQUIA","SEGOVIA",5736,null,null,null,null,null,null,null,null,null,null,null,null,"BOYACÁ","SUTATENZA",15778,null,null,null,null,null,null,null,null,null,null,null,null,null,null,null,null,null,null,null,null,null,"CUNDINAMARCA","VILLA DE SAN DIEGO DE UBATE",25843]
[null,null,null,null,null,"ANTIOQUIA","SONSÓN",5756,null,null,null,null,null,null,null,null,null,null,null,null,"BOYACÁ","TASCO",15790,null,null,null,null,null,null,null,null,null,null,null,null,null,null,null,null,null,null,null,null,null,"CUNDINAMARCA","UNE",25845]
[null,null,null,null,null,"ANTIOQUIA","SOPETRÁN",5761,null,null,null,null,null,null,null,null,null,null,null,null,"BOYACÁ","TENZA",15798,null,null,null,null,null,null,null,null,null,null,null,null,null,null,null,null,null,null,null,null,null,"CUNDINAMARCA","ÚTICA",25851]
[null,null,null,null,null,"ANTIOQUIA","TÁMESIS",5789,null,null,null,null,null,null,null,null,null,null,null,null,"BOYACÁ","TIBANÁ",15804,null,null,null,null,null,null,null,null,null,null,null,null,null,null,null,null,null,null,null,null,null,"CUNDINAMARCA","VERGARA",25862]
[null,null,null,null,null,"ANTIOQUIA","TARAZÁ",5790,null,null,null,null,null,null,null,null,null,null,null,null,"BOYACÁ","TIBASOSA",15806,null,null,null,null,null,null,null,null,null,null,null,null,null,null,null,null,null,null,null,null,null,"CUNDINAMARCA","VIANÍ",25867]
[null,null,null,null,null,"ANTIOQUIA","TARSO",5792,null,null,null,null,null,null,null,null,null,null,null,null,"BOYACÁ","TINJACÁ",15808,null,null,null,null,null,null,null,null,null,null,null,null,null,null,null,null,null,null,null,null,null,"CUNDINAMARCA","VILLAGÓMEZ",25871]
[null,null,null,null,null,"ANTIOQUIA","TITIRIBÍ",5809,null,null,null,null,null,null,null,null,null,null,null,null,"BOYACÁ","TIPACOQUE",15810,null,null,null,null,null,null,null,null,null,null,null,null,null,null,null,null,null,null,null,null,null,"CUNDINAMARCA","VILLAPINZÓN",25873]
[null,null,null,null,null,"ANTIOQUIA","TOLEDO",5819,null,null,null,null,null,null,null,null,null,null,null,null,"BOYACÁ","TOCA",15814,null,null,null,null,null,null,null,null,null,null,null,null,null,null,null,null,null,null,null,null,null,"CUNDINAMARCA","VILLETA",25875]
[null,null,null,null,null,"ANTIOQUIA","TURBO",5837,null,null,null,null,null,null,null,null,null,null,null,null,"BOYACÁ","TOGÜÍ",15816,null,null,null,null,null,null,null,null,null,null,null,null,null,null,null,null,null,null,null,null,null,"CUNDINAMARCA","VIOTÁ",25878]
[null,null,null,null,null,"ANTIOQUIA","URAMITA",5842,null,null,null,null,null,null,null,null,null,null,null,null,"BOYACÁ","TÓPAGA",15820,null,null,null,null,null,null,null,null,null,null,null,null,null,null,null,null,null,null,null,null,null,"CUNDINAMARCA","YACOPÍ",25885]
[null,null,null,null,null,"ANTIOQUIA","URRAO",5847,null,null,null,null,null,null,null,null,null,null,null,null,"BOYACÁ","TOTA",15822,null,null,null,null,null,null,null,null,null,null,null,null,null,null,null,null,null,null,null,null,null,"CUNDINAMARCA","ZIPACÓN",25898]
[null,null,null,null,null,"ANTIOQUIA","VALDIVIA",5854,null,null,null,null,null,null,null,null,null,null,null,null,"BOYACÁ","TUNUNGUÁ",15832,null,null,null,null,null,null,null,null,null,null,null,null,null,null,null,null,null,null,null,null,null,"CUNDINAMARCA","ZIPAQUIRÁ",25899]
[null,null,null,null,null,"ANTIOQUIA","VALPARAÍSO",5856,null,null,null,null,null,null,null,null,null,null,null,null,"BOYACÁ","TURMEQUÉ",15835]
[null,null,null,null,null,"ANTIOQUIA","VEGACHÍ",5858,null,null,null,null,null,null,null,null,null,null,null,null,"BOYACÁ","TUTA",15837]
[null,null,null,null,null,"ANTIOQUIA","VENECIA",5861,null,null,null,null,null,null,null,null,null,null,null,null,"BOYACÁ","TUTAZÁ",15839]
[null,null,null,null,null,"ANTIOQUIA","VIGÍA DEL FUERTE",5873,null,null,null,null,null,null,null,null,null,null,null,null,"BOYACÁ","UMBITA",15842]
[null,null,null,null,null,"ANTIOQUIA","YALÍ",5885,null,null,null,null,null,null,null,null,null,null,null,null,"BOYACÁ","VENTAQUEMADA",15861]
[null,null,null,null,null,"ANTIOQUIA","YARUMAL",5887,null,null,null,null,null,null,null,null,null,null,null,null,"BOYACÁ","VIRACACHÁ",15879]
[null,null,null,null,null,"ANTIOQUIA","YOLOMBÓ",5890,null,null,null,null,null,null,null,null,null,null,null,null,"BOYACÁ","ZETAQUIRA",15897]
[null,null,null,null,null,"ANTIOQUIA","YONDÓ",5893]
[null,null,null,null,null,"ANTIOQUIA","ZARAGOZA",5895]
[null,null,null,null,null,"ARAUCA","ARAUCA",81001]
[null,null,null,null,null,"ARAUCA","ARAUQUITA",81065]
[null,null,null,null,null,"ARAUCA","CRAVO NORTE",81220]
[null,null,null,null,null,"ARAUCA","FORTUL",81300]
[null,null,null,null,null,"ARAUCA","PUERTO RONDÓN",81591]
[null,null,null,null,null,"ARAUCA","SARAVENA",81736]
[null,null,null,null,null,"ARAUCA","TAME",81794]
[null,null,null,null,null,"SAN_ANDRÉS","SAN ANDRÉS",88001]
[null,null,null,null,null,"SAN_ANDRÉS","PROVIDENCIA",52565]
[null,null,null,null,null,"ATLÁNTICO","BARRANQUILLA",8001]
[null,null,null,null,null,"ATLÁNTICO","BARANOA",8078]
[null,null,null,null,null,"ATLÁNTICO","CAMPO DE LA CRUZ",8137]
[null,null,null,null,null,"ATLÁNTICO","CANDELARIA",8141]
[null,null,null,null,null,"ATLÁNTICO","GALAPA",8296]
[null,null,null,null,null,"ATLÁNTICO","JUAN DE ACOSTA",8372]
[null,null,null,null,null,"ATLÁNTICO","LURUACO",8421]
[null,null,null,null,null,"ATLÁNTICO","MALAMBO",8433]
[null,null,null,null,null,"ATLÁNTICO","MANATÍ",8436]
[null,null,null,null,null,"ATLÁNTICO","PALMAR DE VARELA",8520]
[null,null,null,null,null,"ATLÁNTICO","PIOJÓ",8549]
[null,null,null,null,null,"ATLÁNTICO","POLONUEVO",8558]
[null,null,null,null,null,"ATLÁNTICO","PONEDERA",8560]
[null,null,null,null,null,"ATLÁNTICO","PUERTO COLOMBIA",8573]
[null,null,null,null,null,"ATLÁNTICO","REPELÓN",8606]
[null,null,null,null,null,"ATLÁNTICO","SABANAGRANDE",8634]
[null,null,null,null,null,"ATLÁNTICO","SABANALARGA",5628]
[null,null,null,null,null,"ATLÁNTICO","SANTA LUCÍA",8675]
[null,null,null,null,null,"ATLÁNTICO","SANTO TOMÁS",8685]
[null,null,null,null,null,"ATLÁNTICO","SOLEDAD",8758]
[null,null,null,null,null,"ATLÁNTICO","SUAN",8770]
[null,null,null,null,null,"ATLÁNTICO","TUBARÁ",8832]
[null,null,null,null,null,"ATLÁNTICO","USIACURÍ",8849]
[null,null,null,null,null,"BOGOTÁ_DC","BOGOTÁ_DC",11001]
[null,null,null,null,null,"BOLÍVAR","CARTAGENA DE INDIAS",13001]
[null,null,null,null,null,"BOLÍVAR","ACHÍ",13006]
[null,null,null,null,null,"BOLÍVAR","ALTOS DEL ROSARIO",13030]
[null,null,null,null,null,"BOLÍVAR","ARENAL",13042]
[null,null,null,null,null,"BOLÍVAR","ARJONA",13052]
[null,null,null,null,null,"BOLÍVAR","ARROYOHONDO",13062]
[null,null,null,null,null,"BOLÍVAR","BARRANCO DE LOBA",13074]
[null,null,null,null,null,"BOLÍVAR","CALAMAR",13140]
[null,null,null,null,null,"BOLÍVAR","CANTAGALLO",13160]
[null,null,null,null,null,"BOLÍVAR","CICUCO",13188]
[null,null,null,null,null,"BOLÍVAR","CÓRDOBA",13212]
[null,null,null,null,null,"BOLÍVAR","CLEMENCIA",13222]
[null,null,null,null,null,"BOLÍVAR","EL CARMEN DE BOLÍVAR",13244]
[null,null,null,null,null,"BOLÍVAR","EL GUAMO",13248]
[null,null,null,null,null,"BOLÍVAR","EL PEÑÓN",13268]
[null,null,null,null,null,"BOLÍVAR","HATILLO DE LOBA",13300]
[null,null,null,null,null,"BOLÍVAR","MAGANGUÉ",13430]
[null,null,null,null,null,"BOLÍVAR","MAHATES",13433]
[null,null,null,null,null,"BOLÍVAR","MARGARITA",13440]
[null,null,null,null,null,"BOLÍVAR","MARÍA LA BAJA",13442]
[null,null,null,null,null,"BOLÍVAR","MONTECRISTO",13458]
[null,null,null,null,null,"BOLÍVAR","MOMPÓS",13468]
[null,null,null,null,null,"BOLÍVAR","MORALES",13473]
[null,null,null,null,null,"BOLÍVAR","NOROSI",{"$error":"#N/A"}]
[null,null,null,null,null,"BOLÍVAR","PINILLOS",13549]
[null,null,null,null,null,"BOLÍVAR","REGIDOR",13580]
[null,null,null,null,null,"BOLÍVAR","RÍO VIEJO",13600]
[null,null,null,null,null,"BOLÍVAR","SAN CRISTÓBAL",13620]
[null,null,null,null,null,"BOLÍVAR","SAN ESTANISLAO",13647]
[null,null,null,null,null,"BOLÍVAR","SAN FERNANDO",13650]
[null,null,null,null,null,"BOLÍVAR","SAN JACINTO",13654]
[null,null,null,null,null,"BOLÍVAR","SAN JACINTO DEL CAUCA",13655]
[null,null,null,null,null,"BOLÍVAR","SAN JUAN NEPOMUCENO",13657]
[null,null,null,null,null,"BOLÍVAR","SAN MARTÍN DE LOBA",13667]
[null,null,null,null,null,"BOLÍVAR","SAN PABLO",13670]
[null,null,null,null,null,"BOLÍVAR","SANTA CATALINA",13673]
[null,null,null,null,null,"BOLÍVAR","SANTA ROSA",13683]
[null,null,null,null,null,"BOLÍVAR","SANTA ROSA DEL SUR",13688]
[null,null,null,null,null,"BOLÍVAR","SIMITÍ",13744]
[null,null,null,null,null,"BOLÍVAR","SOPLAVIENTO",13760]
[null,null,null,null,null,"BOLÍVAR","TALAIGUA NUEVO",13780]
[null,null,null,null,null,"BOLÍVAR","TIQUISIO",13810]
[null,null,null,null,null,"BOLÍVAR","TURBACO",13836]
[null,null,null,null,null,"BOLÍVAR","TURBANÁ",13838]
[null,null,null,null,null,"BOLÍVAR","VILLANUEVA",13873]
[null,null,null,null,null,"BOLÍVAR","ZAMBRANO",13894]
[null,null,null,null,null,"BOYACÁ","TUNJA",15001]
[null,null,null,null,null,"BOYACÁ","ALMEIDA",15022]
[null,null,null,null,null,"BOYACÁ","AQUITANIA",15047]
[null,null,null,null,null,"BOYACÁ","ARCABUCO",15051]
[null,null,null,null,null,"BOYACÁ","BELÉN",15087]
[null,null,null,null,null,"BOYACÁ","BERBEO",15090]
[null,null,null,null,null,"BOYACÁ","BETÉITIVA",15092]
[null,null,null,null,null,"BOYACÁ","BOAVITA",15097]
[null,null,null,null,null,"BOYACÁ","BOYACÁ",15104]
[null,null,null,null,null,"BOYACÁ","BRICEÑO",5107]
[null,null,null,null,null,"BOYACÁ","BUENAVISTA",15109]
[null,null,null,null,null,"BOYACÁ","BUSBANZÁ",15114]
[null,null,null,null,null,"BOYACÁ","CALDAS",5129]
[null,null,null,null,null,"BOYACÁ","CAMPOHERMOSO",15135]
[null,null,null,null,null,"BOYACÁ","CERINZA",15162]
[null,null,null,null,null,"BOYACÁ","CHINAVITA",15172]
[null,null,null,null,null,"BOYACÁ","CHIQUINQUIRÁ",15176]
[null,null,null,null,null,"BOYACÁ","CHISCAS",15180]
[null,null,null,null,null,"BOYACÁ","CHITA",15183]
[null,null,null,null,null,"BOYACÁ","CHITARAQUE",15185]
[null,null,null,null,null,"BOYACÁ","CHIVATÁ",15187]
[null,null,null,null,null,"BOYACÁ","CIÉNEGA",15189]
[null,null,null,null,null,"BOYACÁ","CÓMBITA",15204]
[null,null,null,null,null,"BOYACÁ","COPER",15212]
[null,null,null,null,null,"BOYACÁ","CORRALES",15215]
[null,null,null,null,null,"BOYACÁ","COVARACHÍA",15218]
[null,null,null,null,null,"BOYACÁ","CUBARÁ",15223]
[null,null,null,null,null,"BOYACÁ","CUCAITA",15224]
[null,null,null,null,null,"BOYACÁ","CUÍTIVA",15226]
[null,null,null,null,null,"BOYACÁ","CHÍQUIZA",15232]
[null,null,null,null,null,"BOYACÁ","CHIVOR",15236]
[null,null,null,null,null,"BOYACÁ","DUITAMA",15238]
[null,null,null,null,null,"BOYACÁ","EL COCUY",15244]
[null,null,null,null,null,"BOYACÁ","EL ESPINO",15248]
[null,null,null,null,null,"BOYACÁ","FIRAVITOBA",15272]
[null,null,null,null,null,"BOYACÁ","FLORESTA",15276]
[null,null,null,null,null,"BOYACÁ","GACHANTIVÁ",15293]
[null,null,null,null,null,"BOYACÁ","GAMEZA",15296]
[null,null,null,null,null,"BOYACÁ","GARAGOA",15299]
[null,null,null,null,null,"BOYACÁ","GUACAMAYAS",15317]
[null,null,null,null,null,"BOYACÁ","GUATEQUE",15322]
[null,null,null,null,null,"BOYACÁ","GUAYATÁ",15325]
[null,null,null,null,null,"BOYACÁ","GÜICÁN",15332]
[null,null,null,null,null,"BOYACÁ","IZA",15362]
[null,null,null,null,null,"BOYACÁ","JENESANO",15367]
[null,null,null,null,null,"BOYACÁ","JERICÓ",5368]
[null,null,null,null,null,"BOYACÁ","LABRANZAGRANDE",15377]
[null,null,null,null,null,"BOYACÁ","LA CAPILLA",15380]
[null,null,null,null,null,"BOYACÁ","LA VICTORIA",91430]
[null,null,null,null,null,"BOYACÁ","LA UVITA",15403]
[null,null,null,null,null,"BOYACÁ","VILLA DE LEYVA",15407]
[null,null,null,null,null,"BOYACÁ","MACANAL",15425]
[null,null,null,null,null,"BOYACÁ","MARIPÍ",15442]
[null,null,null,null,null,"BOYACÁ","MIRAFLORES",15455]
[null,null,null,null,null,"BOYACÁ","MONGUA",15464]
[null,null,null,null,null,"BOYACÁ","MONGUÍ",15466]
[null,null,null,null,null,"BOYACÁ","MONIQUIRÁ",15469]
[null,null,null,null,null,"BOYACÁ","MOTAVITA",15476]
[null,null,null,null,null,"BOYACÁ","MUZO",15480]
[null,null,null,null,null,"BOYACÁ","NOBSA",15491]
[null,null,null,null,null,"BOYACÁ","NUEVO COLÓN",15494]
[null,null,null,null,null,"BOYACÁ","OICATÁ",15500]
[null,null,null,null,null,"BOYACÁ","OTANCHE",15507]
[null,null,null,null,null,"BOYACÁ","PACHAVITA",15511]
[null,null,null,null,null,"BOYACÁ","PÁEZ",15514]
[null,null,null,null,null,"BOYACÁ","PAIPA",15516]
[null,null,null,null,null,"BOYACÁ","PAJARITO",15518]
[null,null,null,null,null,"BOYACÁ","PANQUEBA",15522]
[null,null,null,null,null,"BOYACÁ","PAUNA",15531]
[null,null,null,null,null,"BOYACÁ","PAYA",15533]
[null,null,null,null,null,"BOYACÁ","PAZ DE RÍO",15537]
[null,null,null,null,null,"BOYACÁ","PESCA",15542]
[null,null,null,null,null,"BOYACÁ","PISBA",15550]
[null,null,null,null,null,"BOYACÁ","PUERTO BOYACÁ",15572]
[null,null,null,null,null,"BOYACÁ","QUÍPAMA",15580]
[null,null,null,null,null,"BOYACÁ","RAMIRIQUÍ",15599]
[null,null,null,null,null,"BOYACÁ","RÁQUIRA",15600]
[null,null,null,null,null,"BOYACÁ","RONDÓN",15621]
[null,null,null,null,null,"BOYACÁ","SABOYÁ",15632]
[null,null,null,null,null,"BOYACÁ","SÁCHICA",15638]
[null,null,null,null,null,"BOYACÁ","SAMACÁ",15646]
[null,null,null,null,null,"BOYACÁ","SAN EDUARDO",15660]
[null,null,null,null,null,"BOYACÁ","SAN JOSÉ DE PARE",15664]
[null,null,null,null,null,"BOYACÁ","SAN LUIS DE GACENO",15667]
[null,null,null,null,null,"BOYACÁ","SAN MATEO",15673]
[null,null,null,null,null,"BOYACÁ","SAN MIGUEL DE SEMA",15676]
[null,null,null,null,null,"BOYACÁ","SAN PABLO DE BORBUR",15681]
[null,null,null,null,null,"BOYACÁ","SANTANA",15686]
[null,null,null,null,null,"BOYACÁ","SANTA MARÍA",15690]
[null,null,null,null,null,"BOYACÁ","SANTA ROSA DE VITERBO",15693]
[null,null,null,null,null,"BOYACÁ","SANTA SOFÍA",15696]
[null,null,null,null,null,"BOYACÁ","SATIVANORTE",15720]
[null,null,null,null,null,"BOYACÁ","SATIVASUR",15723]
[null,null,null,null,null,"BOYACÁ","SIACHOQUE",15740]
[null,null,null,null,null,"BOYACÁ","SOATÁ",15753]
[null,null,null,null,null,"BOYACÁ","SOCOTÁ",15755]
[null,null,null,null,null,"BOYACÁ","SOCHA",15757]
[null,null,null,null,null,"BOYACÁ","SOGAMOSO",15759]
[null,null,null,null,null,"BOYACÁ","SOMONDOCO",15761]
[null,null,null,null,null,"BOYACÁ","SORA",15762]
[null,null,null,null,null,"BOYACÁ","SOTAQUIRÁ",15763]
[null,null,null,null,null,"BOYACÁ","SORACÁ",15764]
[null,null,null,null,null,"BOYACÁ","SUSACÓN",15774]
[null,null,null,null,null,"BOYACÁ","SUTAMARCHÁN",15776]
[null,null,null,null,null,"BOYACÁ","SUTATENZA",15778]
[null,null,null,null,null,"BOYACÁ","TASCO",15790]
[null,null,null,null,null,"BOYACÁ","TENZA",15798]
[null,null,null,null,null,"BOYACÁ","TIBANÁ",15804]
[null,null,null,null,null,"BOYACÁ","TIBASOSA",15806]
[null,null,null,null,null,"BOYACÁ","TINJACÁ",15808]
[null,null,null,null,null,"BOYACÁ","TIPACOQUE",15810]
[null,null,null,null,null,"BOYACÁ","TOCA",15814]
[null,null,null,null,null,"BOYACÁ","TOGÜÍ",15816]
[null,null,null,null,null,"BOYACÁ","TÓPAGA",15820]
[null,null,null,null,null,"BOYACÁ","TOTA",15822]
[null,null,null,null,null,"BOYACÁ","TUNUNGUÁ",15832]
[null,null,null,null,null,"BOYACÁ","TURMEQUÉ",15835]
[null,null,null,null,null,"BOYACÁ","TUTA",15837]
[null,null,null,null,null,"BOYACÁ","TUTAZÁ",15839]
[null,null,null,null,null,"BOYACÁ","UMBITA",15842]
[null,null,null,null,null,"BOYACÁ","VENTAQUEMADA",15861]
[null,null,null,null,null,"BOYACÁ","VIRACACHÁ",15879]
[null,null,null,null,null,"BOYACÁ","ZETAQUIRA",15897]
[null,null,null,null,null,"CALDAS","MANIZALES",17001]
[null,null,null,null,null,"CALDAS","AGUADAS",17013]
[null,null,null,null,null,"CALDAS","ANSERMA",17042]
[null,null,null,null,null,"CALDAS","ARANZAZU",17050]
[null,null,null,null,null,"CALDAS","BELALCÁZAR",17088]
[null,null,null,null,null,"CALDAS","CHINCHINÁ",17174]
[null,null,null,null,null,"CALDAS","FILADELFIA",17272]
[null,null,null,null,null,"CALDAS","LA DORADA",17380]
[null,null,null,null,null,"CALDAS","LA MERCED",17388]
[null,null,null,null,null,"CALDAS","MANZANARES",17433]
[null,null,null,null,null,"CALDAS","MARMATO",17442]
[null,null,null,null,null,"CALDAS","MARQUETALIA",17444]
[null,null,null,null,null,"CALDAS","MARULANDA",17446]
[null,null,null,null,null,"CALDAS","NEIRA",17486]
[null,null,null,null,null,"CALDAS","NORCASIA",17495]
[null,null,null,null,null,"CALDAS","PÁCORA",17513]
[null,null,null,null,null,"CALDAS","PALESTINA",17524]
[null,null,null,null,null,"CALDAS","PENSILVANIA",17541]
[null,null,null,null,null,"CALDAS","RIOSUCIO",17614]
[null,null,null,null,null,"CALDAS","RISARALDA",17616]
[null,null,null,null,null,"CALDAS","SALAMINA",17653]
[null,null,null,null,null,"CALDAS","SAMANÁ",17662]
[null,null,null,null,null,"CALDAS","SAN JOSÉ",17665]
[null,null,null,null,null,"CALDAS","SUPÍA",17777]
[null,null,null,null,null,"CALDAS","VICTORIA",17867]
[null,null,null,null,null,"CALDAS","VILLAMARÍA",17873]
[null,null,null,null,null,"CALDAS","VITERBO",17877]
[null,null,null,null,null,"CAQUETÁ","FLORENCIA",18001]
[null,null,null,null,null,"CAQUETÁ","ALBANIA",18029]
[null,null,null,null,null,"CAQUETÁ","BELÉN DE LOS ANDAQUÍES",18094]
[null,null,null,null,null,"CAQUETÁ","CARTAGENA DEL CHAIRÁ",18150]
[null,null,null,null,null,"CAQUETÁ","CURILLO",18205]
[null,null,null,null,null,"CAQUETÁ","EL DONCELLO",18247]
[null,null,null,null,null,"CAQUETÁ","EL PAUJIL",18256]
[null,null,null,null,null,"CAQUETÁ","LA MONTAÑITA",18410]
[null,null,null,null,null,"CAQUETÁ","MILÁN",18460]
[null,null,null,null,null,"CAQUETÁ","MORELIA",18479]
[null,null,null,null,null,"CAQUETÁ","PUERTO RICO",18592]
[null,null,null,null,null,"CAQUETÁ","SAN JOSÉ DEL FRAGUA",18610]
[null,null,null,null,null,"CAQUETÁ","SAN VICENTE DEL CAGUÁN",18753]
[null,null,null,null,null,"CAQUETÁ","SOLANO",18756]
[null,null,null,null,null,"CAQUETÁ","SOLITA",18785]
[null,null,null,null,null,"CAQUETÁ","VALPARAÍSO",18860]
[null,null,null,null,null,"CASANARE","YOPAL",85001]
[null,null,null,null,null,"CASANARE","AGUAZUL",85010]
[null,null,null,null,null,"CASANARE","CHAMEZA",85015]
[null,null,null,null,null,"CASANARE","HATO COROZAL",85125]
[null,null,null,null,null,"CASANARE","LA SALINA",85136]
[null,null,null,null,null,"CASANARE","MANÍ",85139]
[null,null,null,null,null,"CASANARE","MONTERREY",85162]
[null,null,null,null,null,"CASANARE","NUNCHÍA",85225]
[null,null,null,null,null,"CASANARE","OROCUÉ",85230]
[null,null,null,null,null,"CASANARE","PAZ DE ARIPORO",85250]
[null,null,null,null,null,"CASANARE","PORE",85263]
[null,null,null,null,null,"CASANARE","RECETOR",85279]
[null,null,null,null,null,"CASANARE","SABANALARGA",5628]
[null,null,null,null,null,"CASANARE","SÁCAMA",85315]
[null,null,null,null,null,"CASANARE","SAN LUIS DE PALENQUE",85325]
[null,null,null,null,null,"CASANARE","TÁMARA",85400]
[null,null,null,null,null,"CASANARE","TAURAMENA",85410]
[null,null,null,null,null,"CASANARE","TRINIDAD",85430]
[null,null,null,null,null,"CASANARE","VILLANUEVA",13873]
[null,null,null,null,null,"CAUCA","POPAYÁN",19001]
[null,null,null,null,null,"CAUCA","ALMAGUER",19022]
[null,null,null,null,null,"CAUCA","ARGELIA",5055]
[null,null,null,null,null,"CAUCA","BALBOA",19075]
[null,null,null,null,null,"CAUCA","BOLÍVAR",19100]
[null,null,null,null,null,"CAUCA","BUENOS AIRES",19110]
[null,null,null,null,null,"CAUCA","CAJIBÍO",19130]
[null,null,null,null,null,"CAUCA","CALDONO",19137]
[null,null,null,null,null,"CAUCA","CALOTO",19142]
[null,null,null,null,null,"CAUCA","CORINTO",19212]
[null,null,null,null,null,"CAUCA","EL TAMBO",19256]
[null,null,null,null,null,"CAUCA","FLORENCIA",18001]
[null,null,null,null,null,"CAUCA","GUACHENÉ",19300]
[null,null,null,null,null,"CAUCA","GUAPI",19318]
[null,null,null,null,null,"CAUCA","INZÁ",19355]
[null,null,null,null,null,"CAUCA","JAMBALÓ",19364]
[null,null,null,null,null,"CAUCA","LA SIERRA",19392]
[null,null,null,null,null,"CAUCA","LA VEGA",19397]
[null,null,null,null,null,"CAUCA","LÓPEZ",19418]
[null,null,null,null,null,"CAUCA","MERCADERES",19450]
[null,null,null,null,null,"CAUCA","MIRANDA",19455]
[null,null,null,null,null,"CAUCA","MORALES",13473]
[null,null,null,null,null,"CAUCA","PADILLA",19513]
[null,null,null,null,null,"CAUCA","PÁEZ",15514]
[null,null,null,null,null,"CAUCA","PATÍA",19532]
[null,null,null,null,null,"CAUCA","PIAMONTE",19533]
[null,null,null,null,null,"CAUCA","PIENDAMÓ",19548]
[null,null,null,null,null,"CAUCA","PUERTO TEJADA",19573]
[null,null,null,null,null,"CAUCA","PURACÉ",19585]
[null,null,null,null,null,"CAUCA","ROSAS",19622]
[null,null,null,null,null,"CAUCA","SAN SEBASTIÁN",19693]
[null,null,null,null,null,"CAUCA","SANTANDER DE QUILICHAO",19698]
[null,null,null,null,null,"CAUCA","SANTA ROSA",13683]
[null,null,null,null,null,"CAUCA","SILVIA",19743]
[null,null,null,null,null,"CAUCA","SOTARÁ",19760]
[null,null,null,null,null,"CAUCA","SUÁREZ",19780]
[null,null,null,null,null,"CAUCA","SUCRE",19785]
[null,null,null,null,null,"CAUCA","TIMBÍO",19807]
[null,null,null,null,null,"CAUCA","TIMBIQUÍ",19809]
[null,null,null,null,null,"CAUCA","TORIBIO",19821]
[null,null,null,null,null,"CAUCA","TOTORÓ",19824]
[null,null,null,null,null,"CAUCA","VILLA RICA",19845]
[null,null,null,null,null,"CESAR","VALLEDUPAR",20001]
[null,null,null,null,null,"CESAR","AGUACHICA",20011]
[null,null,null,null,null,"CESAR","AGUSTÍN CODAZZI",20013]
[null,null,null,null,null,"CESAR","ASTREA",20032]
[null,null,null,null,null,"CESAR","BECERRIL",20045]
[null,null,null,null,null,"CESAR","BOSCONIA",20060]
[null,null,null,null,null,"CESAR","CHIMICHAGUA",20175]
[null,null,null,null,null,"CESAR","CHIRIGUANÁ",20178]
[null,null,null,null,null,"CESAR","CURUMANÍ",20228]
[null,null,null,null,null,"CESAR","EL COPEY",20238]
[null,null,null,null,null,"CESAR","EL PASO",20250]
[null,null,null,null,null,"CESAR","GAMARRA",20295]
[null,null,null,null,null,"CESAR","GONZÁLEZ",20310]
[null,null,null,null,null,"CESAR","LA GLORIA",20383]
[null,null,null,null,null,"CESAR","LA JAGUA DE IBIRICO",20400]
[null,null,null,null,null,"CESAR","MANAURE",20443]
[null,null,null,null,null,"CESAR","PAILITAS",20517]
[null,null,null,null,null,"CESAR","PELAYA",20550]
[null,null,null,null,null,"CESAR","PUEBLO BELLO",20570]
[null,null,null,null,null,"CESAR","RÍO DE ORO",20614]
[null,null,null,null,null,"CESAR","LA PAZ",20621]
[null,null,null,null,null,"CESAR","SAN ALBERTO",20710]
[null,null,null,null,null,"CESAR","SAN DIEGO",20750]
[null,null,null,null,null,"CESAR","SAN MARTÍN",20770]
[null,null,null,null,null,"CESAR","TAMALAMEQUE",20787]
[null,null,null,null,null,"CHOCÓ","QUIBDÓ",27001]
[null,null,null,null,null,"CHOCÓ","ACANDÍ",27006]
[null,null,null,null,null,"CHOCÓ","ALTO BAUDÓ",27025]
[null,null,null,null,null,"CHOCÓ","ATRATO",27050]
[null,null,null,null,null,"CHOCÓ","BAGADÓ",27073]
[null,null,null,null,null,"CHOCÓ","BAHÍA SOLANO",27075]
[null,null,null,null,null,"CHOCÓ","BAJO BAUDÓ",27077]
[null,null,null,null,null,"CHOCÓ","BOJAYA",27099]
[null,null,null,null,null,"CHOCÓ","EL CANTÓN DEL SAN PABLO",27135]
[null,null,null,null,null,"CHOCÓ","CARMEN DEL DARIEN",27150]
[null,null,null,null,null,"CHOCÓ","CÉRTEGUI",27160]
[null,null,null,null,null,"CHOCÓ","CONDOTO",27205]
[null,null,null,null,null,"CHOCÓ","EL CARMEN DE ATRATO",27245]
[null,null,null,null,null,"CHOCÓ","EL LITORAL DEL SAN JUAN",27250]
[null,null,null,null,null,"CHOCÓ","ISTMINA",27361]
[null,null,null,null,null,"CHOCÓ","JURADÓ",27372]
[null,null,null,null,null,"CHOCÓ","LLORÓ",27413]
[null,null,null,null,null,"CHOCÓ","MEDIO ATRATO",27425]
[null,null,null,null,null,"CHOCÓ","MEDIO BAUDÓ",27430]
[null,null,null,null,null,"CHOCÓ","MEDIO SAN JUAN",27450]
[null,null,null,null,null,"CHOCÓ","NÓVITA",27491]
[null,null,null,null,null,"CHOCÓ","NUQUÍ",27495]
[null,null,null,null,null,"CHOCÓ","RÍO IRÓ",27580]
[null,null,null,null,null,"CHOCÓ","RÍO QUITO",27600]
[null,null,null,null,null,"CHOCÓ","RIOSUCIO",17614]
[null,null,null,null,null,"CHOCÓ","SAN JOSÉ DEL PALMAR",27660]
[null,null,null,null,null,"CHOCÓ","SIPÍ",27745]
[null,null,null,null,null,"CHOCÓ","TADÓ",27787]
[null,null,null,null,null,"CHOCÓ","UNGUÍA",27800]
[null,null,null,null,null,"CHOCÓ","UNIÓN PANAMERICANA",27810]
[null,null,null,null,null,"CÓRDOBA","MONTERÍA",23001]
[null,null,null,null,null,"CÓRDOBA","AYAPEL",23068]
[null,null,null,null,null,"CÓRDOBA","BUENAVISTA",15109]
[null,null,null,null,null,"CÓRDOBA","CANALETE",23090]
[null,null,null,null,null,"CÓRDOBA","CERETÉ",23162]
[null,null,null,null,null,"CÓRDOBA","CHIMÁ",23168]
[null,null,null,null,null,"CÓRDOBA","CHINÚ",23182]
[null,null,null,null,null,"CÓRDOBA","CIÉNAGA DE ORO",23189]
[null,null,null,null,null,"CÓRDOBA","COTORRA",23300]
[null,null,null,null,null,"CÓRDOBA","LA APARTADA",23350]
[null,null,null,null,null,"CÓRDOBA","LORICA",23417]
[null,null,null,null,null,"CÓRDOBA","LOS CÓRDOBAS",23419]
[null,null,null,null,null,"CÓRDOBA","MOMIL",23464]
[null,null,null,null,null,"CÓRDOBA","MONTELÍBANO",23466]
[null,null,null,null,null,"CÓRDOBA","MOÑITOS",23500]
[null,null,null,null,null,"CÓRDOBA","PLANETA RICA",23555]
[null,null,null,null,null,"CÓRDOBA","PUEBLO NUEVO",23570]
[null,null,null,null,null,"CÓRDOBA","PUERTO ESCONDIDO",23574]
[null,null,null,null,null,"CÓRDOBA","PUERTO LIBERTADOR",23580]
[null,null,null,null,null,"CÓRDOBA","PURÍSIMA",23586]
[null,null,null,null,null,"CÓRDOBA","SAHAGÚN",23660]
[null,null,null,null,null,"CÓRDOBA","SAN ANDRÉS DE SOTAVENTO",{"$error":"#N/A"}]
[null,null,null,null,null,"CÓRDOBA","SAN ANTERO",23672]
[null,null,null,null,null,"CÓRDOBA","SAN BERNARDO DEL VIENTO",23675]
[null,null,null,null,null,"CÓRDOBA","SAN CARLOS",5649]
[null,null,null,null,null,"CÓRDOBA","SAN JOSÉ DE URÉ",{"$error":"#N/A"}]
[null,null,null,null,null,"CÓRDOBA","SAN PELAYO",23686]
[null,null,null,null,null,"CÓRDOBA","TIERRALTA",23807]
[null,null,null,null,null,"CÓRDOBA","TUCHÍN",{"$error":"#N/A"}]
[null,null,null,null,null,"CÓRDOBA","VALENCIA",23855]
[null,null,null,null,null,"CUNDINAMARCA","AGUA DE DIOS",25001]
[null,null,null,null,null,"CUNDINAMARCA","ALBÁN",25019]
[null,null,null,null,null,"CUNDINAMARCA","ANAPOIMA",25035]
[null,null,null,null,null,"CUNDINAMARCA","ANOLAIMA",25040]
[null,null,null,null,null,"CUNDINAMARCA","ARBELÁEZ",25053]
[null,null,null,null,null,"CUNDINAMARCA","BELTRÁN",25086]
[null,null,null,null,null,"CUNDINAMARCA","BITUIMA",25095]
[null,null,null,null,null,"CUNDINAMARCA","BOJACÁ",25099]
[null,null,null,null,null,"CUNDINAMARCA","CABRERA",25120]
[null,null,null,null,null,"CUNDINAMARCA","CACHIPAY",25123]
[null,null,null,null,null,"CUNDINAMARCA","CAJICÁ",25126]
[null,null,null,null,null,"CUNDINAMARCA","CAPARRAPÍ",25148]
[null,null,null,null,null,"CUNDINAMARCA","CÁQUEZA",25151]
[null,null,null,null,null,"CUNDINAMARCA","CARMEN DE CARUPA",25154]
[null,null,null,null,null,"CUNDINAMARCA","CHAGUANÍ",25168]
[null,null,null,null,null,"CUNDINAMARCA","CHÍA",25175]
[null,null,null,null,null,"CUNDINAMARCA","CHIPAQUE",25178]
[null,null,null,null,null,"CUNDINAMARCA","CHOACHÍ",25181]
[null,null,null,null,null,"CUNDINAMARCA","CHOCONTÁ",25183]
[null,null,null,null,null,"CUNDINAMARCA","COGUA",25200]
[null,null,null,null,null,"CUNDINAMARCA","COTA",25214]
[null,null,null,null,null,"CUNDINAMARCA","CUCUNUBÁ",25224]
[null,null,null,null,null,"CUNDINAMARCA","EL COLEGIO",25245]
[null,null,null,null,null,"CUNDINAMARCA","EL PEÑÓN",13268]
[null,null,null,null,null,"CUNDINAMARCA","EL ROSAL",25260]
[null,null,null,null,null,"CUNDINAMARCA","FACATATIVÁ",25269]
[null,null,null,null,null,"CUNDINAMARCA","FOMEQUE",25279]
[null,null,null,null,null,"CUNDINAMARCA","FOSCA",25281]
[null,null,null,null,null,"CUNDINAMARCA","FUNZA",25286]
[null,null,null,null,null,"CUNDINAMARCA","FÚQUENE",25288]
[null,null,null,null,null,"CUNDINAMARCA","FUSAGASUGÁ",25290]
[null,null,null,null,null,"CUNDINAMARCA","GACHALÁ",25293]
[null,null,null,null,null,"CUNDINAMARCA","GACHANCIPÁ",25295]
[null,null,null,null,null,"CUNDINAMARCA","GACHETÁ",25297]
[null,null,null,null,null,"CUNDINAMARCA","GAMA",25299]
[null,null,null,null,null,"CUNDINAMARCA","GIRARDOT",25307]
[null,null,null,null,null,"CUNDINAMARCA","GRANADA",5313]
[null,null,null,null,null,"CUNDINAMARCA","GUACHETÁ",25317]
[null,null,null,null,null,"CUNDINAMARCA","GUADUAS",25320]
[null,null,null,null,null,"CUNDINAMARCA","GUASCA",25322]
[null,null,null,null,null,"CUNDINAMARCA","GUATAQUÍ",25324]
[null,null,null,null,null,"CUNDINAMARCA","GUATAVITA",25326]
[null,null,null,null,null,"CUNDINAMARCA","GUAYABAL DE SÍQUIMA",25328]
[null,null,null,null,null,"CUNDINAMARCA","GUAYABETAL",25335]
[null,null,null,null,null,"CUNDINAMARCA","GUTIÉRREZ",25339]
[null,null,null,null,null,"CUNDINAMARCA","JERUSALÉN",25368]
[null,null,null,null,null,"CUNDINAMARCA","JUNÍN",25372]
[null,null,null,null,null,"CUNDINAMARCA","LA CALERA",25377]
[null,null,null,null,null,"CUNDINAMARCA","LA MESA",25386]
[null,null,null,null,null,"CUNDINAMARCA","LA PALMA",25394]
[null,null,null,null,null,"CUNDINAMARCA","LA PEÑA",25398]
[null,null,null,null,null,"CUNDINAMARCA","LA VEGA",19397]
[null,null,null,null,null,"CUNDINAMARCA","LENGUAZAQUE",25407]
[null,null,null,null,null,"CUNDINAMARCA","MACHETA",25426]
[null,null,null,null,null,"CUNDINAMARCA","MADRID",25430]
[null,null,null,null,null,"CUNDINAMARCA","MANTA",25436]
[null,null,null,null,null,"CUNDINAMARCA","MEDINA",25438]
[null,null,null,null,null,"CUNDINAMARCA","MOSQUERA",25473]
[null,null,null,null,null,"CUNDINAMARCA","NARIÑO",5483]
[null,null,null,null,null,"CUNDINAMARCA","NEMOCÓN",25486]
[null,null,null,null,null,"CUNDINAMARCA","NILO",25488]
[null,null,null,null,null,"CUNDINAMARCA","NIMAIMA",25489]
[null,null,null,null,null,"CUNDINAMARCA","NOCAIMA",25491]
[null,null,null,null,null,"CUNDINAMARCA","VENECIA",5861]
[null,null,null,null,null,"CUNDINAMARCA","PACHO",25513]
[null,null,null,null,null,"CUNDINAMARCA","PAIME",25518]
[null,null,null,null,null,"CUNDINAMARCA","PANDI",25524]
[null,null,null,null,null,"CUNDINAMARCA","PARATEBUENO",25530]
[null,null,null,null,null,"CUNDINAMARCA","PASCA",25535]
[null,null,null,null,null,"CUNDINAMARCA","PUERTO SALGAR",25572]
[null,null,null,null,null,"CUNDINAMARCA","PULÍ",25580]
[null,null,null,null,null,"CUNDINAMARCA","QUEBRADANEGRA",25592]
[null,null,null,null,null,"CUNDINAMARCA","QUETAME",25594]
[null,null,null,null,null,"CUNDINAMARCA","QUIPILE",25596]
[null,null,null,null,null,"CUNDINAMARCA","APULO",25599]
[null,null,null,null,null,"CUNDINAMARCA","RICAURTE",25612]
[null,null,null,null,null,"CUNDINAMARCA","SAN ANTONIO DEL TEQUENDAMA",25645]
[null,null,null,null,null,"CUNDINAMARCA","SAN BERNARDO",25649]
[null,null,null,null,null,"CUNDINAMARCA","SAN CAYETANO",25653]
[null,null,null,null,null,"CUNDINAMARCA","SAN FRANCISCO",5652]
[null,null,null,null,null,"CUNDINAMARCA","SAN JUAN DE RÍO SECO",25662]
[null,null,null,null,null,"CUNDINAMARCA","SASAIMA",25718]
[null,null,null,null,null,"CUNDINAMARCA","SESQUILÉ",25736]
[null,null,null,null,null,"CUNDINAMARCA","SIBATÉ",25740]
[null,null,null,null,null,"CUNDINAMARCA","SILVANIA",25743]
[null,null,null,null,null,"CUNDINAMARCA","SIMIJACA",25745]
[null,null,null,null,null,"CUNDINAMARCA","SOACHA",25754]
[null,null,null,null,null,"CUNDINAMARCA","SOPÓ",25758]
[null,null,null,null,null,"CUNDINAMARCA","SUBACHOQUE",25769]
[null,null,null,null,null,"CUNDINAMARCA","SUESCA",25772]
[null,null,null,null,null,"CUNDINAMARCA","SUPATÁ",25777]
[null,null,null,null,null,"CUNDINAMARCA","SUSA",25779]
[null,null,null,null,null,"CUNDINAMARCA","SUTATAUSA",25781]
[null,null,null,null,null,"CUNDINAMARCA","TABIO",25785]
[null,null,null,null,null,"CUNDINAMARCA","TAUSA",25793]
[null,null,null,null,null,"CUNDINAMARCA","TENA",25797]
[null,null,null,null,null,"CUNDINAMARCA","TENJO",25799]
[null,null,null,null,null,"CUNDINAMARCA","TIBACUY",25805]
[null,null,null,null,null,"CUNDINAMARCA","TIBIRITA",25807]
[null,null,null,null,null,"CUNDINAMARCA","TOCAIMA",25815]
[null,null,null,null,null,"CUNDINAMARCA","TOCANCIPÁ",25817]
[null,null,null,null,null,"CUNDINAMARCA","TOPAIPÍ",25823]
[null,null,null,null,null,"CUNDINAMARCA","UBALÁ",25839]
[null,null,null,null,null,"CUNDINAMARCA","UBAQUE",25841]
[null,null,null,null,null,"CUNDINAMARCA","VILLA DE SAN DIEGO DE UBATE",25843]
[null,null,null,null,null,"CUNDINAMARCA","UNE",25845]
[null,null,null,null,null,"CUNDINAMARCA","ÚTICA",25851]
[null,null,null,null,null,"CUNDINAMARCA","VERGARA",25862]
[null,null,null,null,null,"CUNDINAMARCA","VIANÍ",25867]
[null,null,null,null,null,"CUNDINAMARCA","VILLAGÓMEZ",25871]
[null,null,null,null,null,"CUNDINAMARCA","VILLAPINZÓN",25873]
[null,null,null,null,null,"CUNDINAMARCA","VILLETA",25875]
[null,null,null,null,null,"CUNDINAMARCA","VIOTÁ",25878]
[null,null,null,null,null,"CUNDINAMARCA","YACOPÍ",25885]
[null,null,null,null,null,"CUNDINAMARCA","ZIPACÓN",25898]
[null,null,null,null,null,"CUNDINAMARCA","ZIPAQUIRÁ",25899]
[null,null,null,null,null,"GUAINÍA","INÍRIDA",94001]
[null,null,null,null,null,"GUAINÍA","BARRANCO MINAS",94343]
[null,null,null,null,null,"GUAINÍA","MAPIRIPANA",94663]
[null,null,null,null,null,"GUAINÍA","SAN FELIPE",94883]
[null,null,null,null,null,"GUAINÍA","PUERTO COLOMBIA",8573]
[null,null,null,null,null,"GUAINÍA","LA GUADALUPE",94885]
[null,null,null,null,null,"GUAINÍA","CACAHUAL",94886]
[null,null,null,null,null,"GUAINÍA","PANA PANA",94887]
[null,null,null,null,null,"GUAINÍA","MORICHAL",94888]
[null,null,null,null,null,"GUAVIARE","SAN JOSÉ DEL GUAVIARE",95001]
[null,null,null,null,null,"GUAVIARE","CALAMAR",13140]
[null,null,null,null,null,"GUAVIARE","EL RETORNO",95025]
[null,null,null,null,null,"GUAVIARE","MIRAFLORES",15455]
[null,null,null,null,null,"HUILA","NEIVA",41001]
[null,null,null,null,null,"HUILA","ACEVEDO",41006]
[null,null,null,null,null,"HUILA","AGRADO",41013]
[null,null,null,null,null,"HUILA","AIPE",41016]
[null,null,null,null,null,"HUILA","ALGECIRAS",41020]
[null,null,null,null,null,"HUILA","ALTAMIRA",41026]
[null,null,null,null,null,"HUILA","BARAYA",41078]
[null,null,null,null,null,"HUILA","CAMPOALEGRE",41132]
[null,null,null,null,null,"HUILA","COLOMBIA",41206]
[null,null,null,null,null,"HUILA","ELÍAS",41244]
[null,null,null,null,null,"HUILA","GARZÓN",41298]
[null,null,null,null,null,"HUILA","GIGANTE",41306]
[null,null,null,null,null,"HUILA","GUADALUPE",5315]
[null,null,null,null,null,"HUILA","HOBO",41349]
[null,null,null,null,null,"HUILA","IQUIRA",41357]
[null,null,null,null,null,"HUILA","ISNOS",41359]
[null,null,null,null,null,"HUILA","LA ARGENTINA",41378]
[null,null,null,null,null,"HUILA","LA PLATA",41396]
[null,null,null,null,null,"HUILA","NÁTAGA",41483]
[null,null,null,null,null,"HUILA","OPORAPA",41503]
[null,null,null,null,null,"HUILA","PAICOL",41518]
[null,null,null,null,null,"HUILA","PALERMO",41524]
[null,null,null,null,null,"HUILA","PALESTINA",17524]
[null,null,null,null,null,"HUILA","PITAL",41548]
[null,null,null,null,null,"HUILA","PITALITO",41551]
[null,null,null,null,null,"HUILA","RIVERA",41615]
[null,null,null,null,null,"HUILA","SALADOBLANCO",41660]
[null,null,null,null,null,"HUILA","SAN AGUSTÍN",41668]
[null,null,null,null,null,"HUILA","SANTA MARÍA",15690]
[null,null,null,null,null,"HUILA","SUAZA",41770]
[null,null,null,null,null,"HUILA","TARQUI",41791]
[null,null,null,null,null,"HUILA","TESALIA",41797]
[null,null,null,null,null,"HUILA","TELLO",41799]
[null,null,null,null,null,"HUILA","TERUEL",41801]
[null,null,null,null,null,"HUILA","TIMANÁ",41807]
[null,null,null,null,null,"HUILA","VILLAVIEJA",41872]
[null,null,null,null,null,"HUILA","YAGUARÁ",41885]
[null,null,null,null,null,"LA_GUAJIRA","RIOHACHA",44001]
[null,null,null,null,null,"LA_GUAJIRA","ALBANIA",18029]
[null,null,null,null,null,"LA_GUAJIRA","BARRANCAS",44078]
[null,null,null,null,null,"LA_GUAJIRA","DIBULLA",44090]
[null,null,null,null,null,"LA_GUAJIRA","DISTRACCIÓN",44098]
[null,null,null,null,null,"LA_GUAJIRA","EL MOLINO",44110]
[null,null,null,null,null,"LA_GUAJIRA","FONSECA",44279]
[null,null,null,null,null,"LA_GUAJIRA","HATO NUEVO",44378]
[null,null,null,null,null,"LA_GUAJIRA","LA JAGUA DEL PILAR",44420]
[null,null,null,null,null,"LA_GUAJIRA","MAICAO",44430]
[null,null,null,null,null,"LA_GUAJIRA","MANAURE",20443]
[null,null,null,null,null,"LA_GUAJIRA","SAN JUAN DEL CESAR",44650]
[null,null,null,null,null,"LA_GUAJIRA","URIBIA",44847]
[null,null,null,null,null,"LA_GUAJIRA","URUMITA",44855]
[null,null,null,null,null,"LA_GUAJIRA","VILLANUEVA",13873]
[null,null,null,null,null,"MAGDALENA","SANTA MARTA",47001]
[null,null,null,null,null,"MAGDALENA","ALGARROBO",47030]
[null,null,null,null,null,"MAGDALENA","ARACATACA",47053]
[null,null,null,null,null,"MAGDALENA","ARIGUANÍ",47058]
[null,null,null,null,null,"MAGDALENA","CERRO SAN ANTONIO",47161]
[null,null,null,null,null,"MAGDALENA","CHIBOLO",47170]
[null,null,null,null,null,"MAGDALENA","CIÉNAGA",47189]
[null,null,null,null,null,"MAGDALENA","CONCORDIA",5209]
[null,null,null,null,null,"MAGDALENA","EL BANCO",47245]
[null,null,null,null,null,"MAGDALENA","EL PIÑON",47258]
[null,null,null,null,null,"MAGDALENA","EL RETÉN",47268]
[null,null,null,null,null,"MAGDALENA","FUNDACIÓN",47288]
[null,null,null,null,null,"MAGDALENA","GUAMAL",47318]
[null,null,null,null,null,"MAGDALENA","NUEVA GRANADA",47460]
[null,null,null,null,null,"MAGDALENA","PEDRAZA",47541]
[null,null,null,null,null,"MAGDALENA","PIJIÑO DEL CARMEN",47545]
[null,null,null,null,null,"MAGDALENA","PIVIJAY",47551]
[null,null,null,null,null,"MAGDALENA","PLATO",47555]
[null,null,null,null,null,"MAGDALENA","PUEBLOVIEJO",47570]
[null,null,null,null,null,"MAGDALENA","REMOLINO",47605]
[null,null,null,null,null,"MAGDALENA","SABANAS DE SAN ANGEL",47660]
[null,null,null,null,null,"MAGDALENA","SALAMINA",17653]
[null,null,null,null,null,"MAGDALENA","SAN SEBASTIÁN DE BUENAVISTA",47692]
[null,null,null,null,null,"MAGDALENA","SAN ZENÓN",47703]
[null,null,null,null,null,"MAGDALENA","SANTA ANA",47707]
[null,null,null,null,null,"MAGDALENA","SANTA BÁRBARA DE PINTO",47720]
[null,null,null,null,null,"MAGDALENA","SITIONUEVO",47745]
[null,null,null,null,null,"MAGDALENA","TENERIFE",47798]
[null,null,null,null,null,"MAGDALENA","ZAPAYÁN",47960]
[null,null,null,null,null,"MAGDALENA","ZONA BANANERA",47980]
[null,null,null,null,null,"META","VILLAVICENCIO",50001]
[null,null,null,null,null,"META","ACACÍAS",50006]
[null,null,null,null,null,"META","BARRANCA DE UPÍA",50110]
[null,null,null,null,null,"META","CABUYARO",50124]
[null,null,null,null,null,"META","CASTILLA LA NUEVA",50150]
[null,null,null,null,null,"META","CUBARRAL",50223]
[null,null,null,null,null,"META","CUMARAL",50226]
[null,null,null,null,null,"META","EL CALVARIO",50245]
[null,null,null,null,null,"META","EL CASTILLO",50251]
[null,null,null,null,null,"META","EL DORADO",50270]
[null,null,null,null,null,"META","FUENTE DE ORO",50287]
[null,null,null,null,null,"META","GRANADA",5313]
[null,null,null,null,null,"META","GUAMAL",47318]
[null,null,null,null,null,"META","MAPIRIPÁN",50325]
[null,null,null,null,null,"META","MESETAS",50330]
[null,null,null,null,null,"META","LA MACARENA",50350]
[null,null,null,null,null,"META","URIBE",50370]
[null,null,null,null,null,"META","LEJANÍAS",50400]
[null,null,null,null,null,"META","PUERTO CONCORDIA",50450]
[null,null,null,null,null,"META","PUERTO GAITÁN",50568]
[null,null,null,null,null,"META","PUERTO LÓPEZ",50573]
[null,null,null,null,null,"META","PUERTO LLERAS",50577]
[null,null,null,null,null,"META","PUERTO RICO",18592]
[null,null,null,null,null,"META","RESTREPO",50606]
[null,null,null,null,null,"META","SAN CARLOS DE GUAROA",50680]
[null,null,null,null,null,"META","SAN JUAN DE ARAMA",50683]
[null,null,null,null,null,"META","SAN JUANITO",50686]
[null,null,null,null,null,"META","SAN MARTÍN",20770]
[null,null,null,null,null,"META","VISTA HERMOSA",50711]
[null,null,null,null,null,"NARIÑO","PASTO",52001]
[null,null,null,null,null,"NARIÑO","ALBÁN",25019]
[null,null,null,null,null,"NARIÑO","ALDANA",52022]
[null,null,null,null,null,"NARIÑO","ANCUYÁ",52036]
[null,null,null,null,null,"NARIÑO","ARBOLEDA",52051]
[null,null,null,null,null,"NARIÑO","BARBACOAS",52079]
[null,null,null,null,null,"NARIÑO","BELÉN",15087]
[null,null,null,null,null,"NARIÑO","BUESACO",52110]
[null,null,null,null,null,"NARIÑO","COLÓN",52203]
[null,null,null,null,null,"NARIÑO","CONSACA",52207]
[null,null,null,null,null,"NARIÑO","CONTADERO",52210]
[null,null,null,null,null,"NARIÑO","CÓRDOBA",13212]
[null,null,null,null,null,"NARIÑO","CUASPUD",52224]
[null,null,null,null,null,"NARIÑO","CUMBAL",52227]
[null,null,null,null,null,"NARIÑO","CUMBITARA",52233]
[null,null,null,null,null,"NARIÑO","CHACHAGÜÍ",52240]
[null,null,null,null,null,"NARIÑO","EL CHARCO",52250]
[null,null,null,null,null,"NARIÑO","EL PEÑOL",52254]
[null,null,null,null,null,"NARIÑO","EL ROSARIO",52256]
[null,null,null,null,null,"NARIÑO","EL TABLÓN DE GÓMEZ",52258]
[null,null,null,null,null,"NARIÑO","EL TAMBO",19256]
[null,null,null,null,null,"NARIÑO","FUNES",52287]
[null,null,null,null,null,"NARIÑO","GUACHUCAL",52317]
[null,null,null,null,null,"NARIÑO","GUAITARILLA",52320]
[null,null,null,null,null,"NARIÑO","GUALMATÁN",52323]
[null,null,null,null,null,"NARIÑO","ILES",52352]
[null,null,null,null,null,"NARIÑO","IMUÉS",52354]
[null,null,null,null,null,"NARIÑO","IPIALES",52356]
[null,null,null,null,null,"NARIÑO","LA CRUZ",52378]
[null,null,null,null,null,"NARIÑO","LA FLORIDA",52381]
[null,null,null,null,null,"NARIÑO","LA LLANADA",52385]
[null,null,null,null,null,"NARIÑO","LA TOLA",52390]
[null,null,null,null,null,"NARIÑO","LA UNIÓN",5400]
[null,null,null,null,null,"NARIÑO","LEIVA",52405]
[null,null,null,null,null,"NARIÑO","LINARES",52411]
[null,null,null,null,null,"NARIÑO","LOS ANDES",52418]
[null,null,null,null,null,"NARIÑO","MAGÜI",52427]
[null,null,null,null,null,"NARIÑO","MALLAMA",52435]
[null,null,null,null,null,"NARIÑO","MOSQUERA",25473]
[null,null,null,null,null,"NARIÑO","NARIÑO",5483]
[null,null,null,null,null,"NARIÑO","OLAYA HERRERA",52490]
[null,null,null,null,null,"NARIÑO","OSPINA",52506]
[null,null,null,null,null,"NARIÑO","FRANCISCO PIZARRO",52520]
[null,null,null,null,null,"NARIÑO","POLICARPA",52540]
[null,null,null,null,null,"NARIÑO","POTOSÍ",52560]
[null,null,null,null,null,"NARIÑO","PROVIDENCIA",52565]
[null,null,null,null,null,"NARIÑO","PUERRES",52573]
[null,null,null,null,null,"NARIÑO","PUPIALES",52585]
[null,null,null,null,null,"NARIÑO","RICAURTE",25612]
[null,null,null,null,null,"NARIÑO","ROBERTO PAYÁN",52621]
[null,null,null,null,null,"NARIÑO","SAMANIEGO",52678]
[null,null,null,null,null,"NARIÑO","SANDONÁ",52683]
[null,null,null,null,null,"NARIÑO","SAN BERNARDO",25649]
[null,null,null,null,null,"NARIÑO","SAN LORENZO",52687]
[null,null,null,null,null,"NARIÑO","SAN PABLO",13670]
[null,null,null,null,null,"NARIÑO","SAN PEDRO DE CARTAGO",52694]
[null,null,null,null,null,"NARIÑO","SANTA BÁRBARA",5679]
[null,null,null,null,null,"NARIÑO","SANTACRUZ",52699]
[null,null,null,null,null,"NARIÑO","SAPUYES",52720]
[null,null,null,null,null,"NARIÑO","TAMINANGO",52786]
[null,null,null,null,null,"NARIÑO","TANGUA",52788]
[null,null,null,null,null,"NARIÑO","SAN ANDRES DE TUMACO",52835]
[null,null,null,null,null,"NARIÑO","TÚQUERRES",52838]
[null,null,null,null,null,"NARIÑO","YACUANQUER",52885]
[null,null,null,null,null,"NORTE_DE_SANTANDER","SAN JOSÉ DE CÚCUTA",{"$error":"#N/A"}]
[null,null,null,null,null,"NORTE_DE_SANTANDER","ABREGO",54003]
[null,null,null,null,null,"NORTE_DE_SANTANDER","ARBOLEDAS",54051]
[null,null,null,null,null,"NORTE_DE_SANTANDER","BOCHALEMA",54099]
[null,null,null,null,null,"NORTE_DE_SANTANDER","BUCARASICA",54109]
[null,null,null,null,null,"NORTE_DE_SANTANDER","CÁCOTA",54125]
[null,null,null,null,null,"NORTE_DE_SANTANDER","CACHIRÁ",54128]
[null,null,null,null,null,"NORTE_DE_SANTANDER","CHINÁCOTA",54172]
[null,null,null,null,null,"NORTE_DE_SANTANDER","CHITAGÁ",54174]
[null,null,null,null,null,"NORTE_DE_SANTANDER","CONVENCIÓN",54206]
[null,null,null,null,null,"NORTE_DE_SANTANDER","CUCUTILLA",54223]
[null,null,null,null,null,"NORTE_DE_SANTANDER","DURANIA",54239]
[null,null,null,null,null,"NORTE_DE_SANTANDER","EL CARMEN",54245]
[null,null,null,null,null,"NORTE_DE_SANTANDER","EL TARRA",54250]
[null,null,null,null,null,"NORTE_DE_SANTANDER","EL ZULIA",54261]
[null,null,null,null,null,"NORTE_DE_SANTANDER","GRAMALOTE",54313]
[null,null,null,null,null,"NORTE_DE_SANTANDER","HACARÍ",54344]
[null,null,null,null,null,"NORTE_DE_SANTANDER","HERRÁN",54347]
[null,null,null,null,null,"NORTE_DE_SANTANDER","LABATECA",54377]
[null,null,null,null,null,"NORTE_DE_SANTANDER","LA ESPERANZA",54385]
[null,null,null,null,null,"NORTE_DE_SANTANDER","LA PLAYA",54398]
[null,null,null,null,null,"NORTE_DE_SANTANDER","LOS PATIOS",54405]
[null,null,null,null,null,"NORTE_DE_SANTANDER","LOURDES",54418]
[null,null,null,null,null,"NORTE_DE_SANTANDER","MUTISCUA",54480]
[null,null,null,null,null,"NORTE_DE_SANTANDER","OCAÑA",54498]
[null,null,null,null,null,"NORTE_DE_SANTANDER","PAMPLONA",54518]
[null,null,null,null,null,"NORTE_DE_SANTANDER","PAMPLONITA",54520]
[null,null,null,null,null,"NORTE_DE_SANTANDER","PUERTO SANTANDER",91669]
[null,null,null,null,null,"NORTE_DE_SANTANDER","RAGONVALIA",54599]
[null,null,null,null,null,"NORTE_DE_SANTANDER","SALAZAR",54660]
[null,null,null,null,null,"NORTE_DE_SANTANDER","SAN CALIXTO",54670]
[null,null,null,null,null,"NORTE_DE_SANTANDER","SAN CAYETANO",25653]
[null,null,null,null,null,"NORTE_DE_SANTANDER","SANTIAGO",54680]
[null,null,null,null,null,"NORTE_DE_SANTANDER","SARDINATA",54720]
[null,null,null,null,null,"NORTE_DE_SANTANDER","SILOS",54743]
[null,null,null,null,null,"NORTE_DE_SANTANDER","TEORAMA",54800]
[null,null,null,null,null,"NORTE_DE_SANTANDER","TIBÚ",54810]
[null,null,null,null,null,"NORTE_DE_SANTANDER","TOLEDO",5819]
[null,null,null,null,null,"NORTE_DE_SANTANDER","VILLA CARO",54871]
[null,null,null,null,null,"NORTE_DE_SANTANDER","VILLA DEL ROSARIO",54874]
[null,null,null,null,null,"PUTUMAYO","MOCOA",86001]
[null,null,null,null,null,"PUTUMAYO","COLÓN",52203]
[null,null,null,null,null,"PUTUMAYO","ORITO",86320]
[null,null,null,null,null,"PUTUMAYO","PUERTO ASÍS",86568]
[null,null,null,null,null,"PUTUMAYO","PUERTO CAICEDO",86569]
[null,null,null,null,null,"PUTUMAYO","PUERTO GUZMÁN",86571]
[null,null,null,null,null,"PUTUMAYO","PUERTO LEGUÍZAMO",{"$error":"#N/A"}]
[null,null,null,null,null,"PUTUMAYO","SIBUNDOY",86749]
[null,null,null,null,null,"PUTUMAYO","SAN FRANCISCO",5652]
[null,null,null,null,null,"PUTUMAYO","SAN MIGUEL",86757]
[null,null,null,null,null,"PUTUMAYO","SANTIAGO",54680]
[null,null,null,null,null,"PUTUMAYO","VALLE DEL GUAMUEZ",86865]
[null,null,null,null,null,"PUTUMAYO","VILLAGARZÓN",86885]
[null,null,null,null,null,"QUINDIO","ARMENIA",5059]
[null,null,null,null,null,"QUINDIO","BUENAVISTA",15109]
[null,null,null,null,null,"QUINDIO","CALARCA",63130]
[null,null,null,null,null,"QUINDIO","CIRCASIA",63190]
[null,null,null,null,null,"QUINDIO","CÓRDOBA",13212]
[null,null,null,null,null,"QUINDIO","FILANDIA",63272]
[null,null,null,null,null,"QUINDIO","GÉNOVA",63302]
[null,null,null,null,null,"QUINDIO","LA TEBAIDA",63401]
[null,null,null,null,null,"QUINDIO","MONTENEGRO",63470]
[null,null,null,null,null,"QUINDIO","PIJAO",63548]
[null,null,null,null,null,"QUINDIO","QUIMBAYA",63594]
[null,null,null,null,null,"QUINDIO","SALENTO",63690]
[null,null,null,null,null,"RISARALDA","PEREIRA",66001]
[null,null,null,null,null,"RISARALDA","APÍA",66045]
[null,null,null,null,null,"RISARALDA","BALBOA",19075]
[null,null,null,null,null,"RISARALDA","BELÉN DE UMBRÍA",66088]
[null,null,null,null,null,"RISARALDA","DOSQUEBRADAS",66170]
[null,null,null,null,null,"RISARALDA","GUÁTICA",66318]
[null,null,null,null,null,"RISARALDA","LA CELIA",66383]
[null,null,null,null,null,"RISARALDA","LA VIRGINIA",66400]
[null,null,null,null,null,"RISARALDA","MARSELLA",66440]
[null,null,null,null,null,"RISARALDA","MISTRATÓ",66456]
[null,null,null,null,null,"RISARALDA","PUEBLO RICO",66572]
[null,null,null,null,null,"RISARALDA","QUINCHÍA",66594]
[null,null,null,null,null,"RISARALDA","SANTA ROSA DE CABAL",66682]
[null,null,null,null,null,"RISARALDA","SANTUARIO",66687]
[null,null,null,null,null,"SANTANDER","BUCARAMANGA",68001]
[null,null,null,null,null,"SANTANDER","AGUADA",68013]
[null,null,null,null,null,"SANTANDER","ALBANIA",18029]
[null,null,null,null,null,"SANTANDER","ARATOCA",68051]
[null,null,null,null,null,"SANTANDER","BARBOSA",5079]
[null,null,null,null,null,"SANTANDER","BARICHARA",68079]
[null,null,null,null,null,"SANTANDER","BARRANCABERMEJA",68081]
[null,null,null,null,null,"SANTANDER","BETULIA",5093]
[null,null,null,null,null,"SANTANDER","BOLÍVAR",19100]
[null,null,null,null,null,"SANTANDER","CABRERA",25120]
[null,null,null,null,null,"SANTANDER","CALIFORNIA",68132]
[null,null,null,null,null,"SANTANDER","CAPITANEJO",68147]
[null,null,null,null,null,"SANTANDER","CARCASÍ",68152]
[null,null,null,null,null,"SANTANDER","CEPITÁ",68160]
[null,null,null,null,null,"SANTANDER","CERRITO",68162]
[null,null,null,null,null,"SANTANDER","CHARALÁ",68167]
[null,null,null,null,null,"SANTANDER","CHARTA",68169]
[null,null,null,null,null,"SANTANDER","CHIMA",68176]
[null,null,null,null,null,"SANTANDER","CHIPATÁ",68179]
[null,null,null,null,null,"SANTANDER","CIMITARRA",68190]
[null,null,null,null,null,"SANTANDER","CONCEPCIÓN",5206]
[null,null,null,null,null,"SANTANDER","CONFINES",68209]
[null,null,null,null,null,"SANTANDER","CONTRATACIÓN",68211]
[null,null,null,null,null,"SANTANDER","COROMORO",68217]
[null,null,null,null,null,"SANTANDER","CURITÍ",68229]
[null,null,null,null,null,"SANTANDER","EL CARMEN DE CHUCURÍ",68235]
[null,null,null,null,null,"SANTANDER","EL GUACAMAYO",68245]
[null,null,null,null,null,"SANTANDER","EL PEÑÓN",13268]
[null,null,null,null,null,"SANTANDER","EL PLAYÓN",68255]
[null,null,null,null,null,"SANTANDER","ENCINO",68264]
[null,null,null,null,null,"SANTANDER","ENCISO",68266]
[null,null,null,null,null,"SANTANDER","FLORIÁN",68271]
[null,null,null,null,null,"SANTANDER","FLORIDABLANCA",68276]
[null,null,null,null,null,"SANTANDER","GALÁN",68296]
[null,null,null,null,null,"SANTANDER","GAMBITA",68298]
[null,null,null,null,null,"SANTANDER","GIRÓN",68307]
[null,null,null,null,null,"SANTANDER","GUACA",68318]
[null,null,null,null,null,"SANTANDER","GUADALUPE",5315]
[null,null,null,null,null,"SANTANDER","GUAPOTÁ",68322]
[null,null,null,null,null,"SANTANDER","GUAVATÁ",68324]
[null,null,null,null,null,"SANTANDER","GÜEPSA",68327]
[null,null,null,null,null,"SANTANDER","HATO",68344]
[null,null,null,null,null,"SANTANDER","JESÚS MARÍA",68368]
[null,null,null,null,null,"SANTANDER","JORDÁN",68370]
[null,null,null,null,null,"SANTANDER","LA BELLEZA",68377]
[null,null,null,null,null,"SANTANDER","LANDÁZURI",68385]
[null,null,null,null,null,"SANTANDER","LA PAZ",20621]
[null,null,null,null,null,"SANTANDER","LEBRIJA",68406]
[null,null,null,null,null,"SANTANDER","LOS SANTOS",68418]
[null,null,null,null,null,"SANTANDER","MACARAVITA",68425]
[null,null,null,null,null,"SANTANDER","MÁLAGA",68432]
[null,null,null,null,null,"SANTANDER","MATANZA",68444]
[null,null,null,null,null,"SANTANDER","MOGOTES",68464]
[null,null,null,null,null,"SANTANDER","MOLAGAVITA",68468]
[null,null,null,null,null,"SANTANDER","OCAMONTE",68498]
[null,null,null,null,null,"SANTANDER","OIBA",68500]
[null,null,null,null,null,"SANTANDER","ONZAGA",68502]
[null,null,null,null,null,"SANTANDER","PALMAR",68522]
[null,null,null,null,null,"SANTANDER","PALMAS DEL SOCORRO",68524]
[null,null,null,null,null,"SANTANDER","PÁRAMO",68533]
[null,null,null,null,null,"SANTANDER","PIEDECUESTA",68547]
[null,null,null,null,null,"SANTANDER","PINCHOTE",68549]
[null,null,null,null,null,"SANTANDER","PUENTE NACIONAL",68572]
[null,null,null,null,null,"SANTANDER","PUERTO PARRA",68573]
[null,null,null,null,null,"SANTANDER","PUERTO WILCHES",68575]
[null,null,null,null,null,"SANTANDER","RIONEGRO",5615]
[null,null,null,null,null,"SANTANDER","SABANA DE TORRES",68655]
[null,null,null,null,null,"SANTANDER","SAN ANDRÉS",88001]
[null,null,null,null,null,"SANTANDER","SAN BENITO",68673]
[null,null,null,null,null,"SANTANDER","SAN GIL",68679]
[null,null,null,null,null,"SANTANDER","SAN JOAQUÍN",68682]
[null,null,null,null,null,"SANTANDER","SAN JOSÉ DE MIRANDA",68684]
[null,null,null,null,null,"SANTANDER","SAN MIGUEL",86757]
[null,null,null,null,null,"SANTANDER","SAN VICENTE DE CHUCURÍ",68689]
[null,null,null,null,null,"SANTANDER","SANTA BÁRBARA",5679]
[null,null,null,null,null,"SANTANDER","SANTA HELENA DEL OPÓN",68720]
[null,null,null,null,null,"SANTANDER","SIMACOTA",68745]
[null,null,null,null,null,"SANTANDER","SOCORRO",68755]
[null,null,null,null,null,"SANTANDER","SUAITA",68770]
[null,null,null,null,null,"SANTANDER","SUCRE",19785]
[null,null,null,null,null,"SANTANDER","SURATÁ",68780]
[null,null,null,null,null,"SANTANDER","TONA",68820]
[null,null,null,null,null,"SANTANDER","VALLE DE SAN JOSÉ",68855]
[null,null,null,null,null,"SANTANDER","VÉLEZ",68861]
[null,null,null,null,null,"SANTANDER","VETAS",68867]
[null,null,null,null,null,"SANTANDER","VILLANUEVA",13873]
[null,null,null,null,null,"SANTANDER","ZAPATOCA",68895]
[null,null,null,null,null,"SUCRE","SINCELEJO",70001]
[null,null,null,null,null,"SUCRE","BUENAVISTA",15109]
[null,null,null,null,null,"SUCRE","CAIMITO",70124]
[null,null,null,null,null,"SUCRE","COLOSO",70204]
[null,null,null,null,null,"SUCRE","COROZAL",70215]
[null,null,null,null,null,"SUCRE","COVEÑAS",70221]
[null,null,null,null,null,"SUCRE","CHALÁN",70230]
[null,null,null,null,null,"SUCRE","EL ROBLE",70233]
[null,null,null,null,null,"SUCRE","GALERAS",70235]
[null,null,null,null,null,"SUCRE","GUARANDA",70265]
[null,null,null,null,null,"SUCRE","LA UNIÓN",5400]
[null,null,null,null,null,"SUCRE","LOS PALMITOS",70418]
[null,null,null,null,null,"SUCRE","MAJAGUAL",70429]
[null,null,null,null,null,"SUCRE","MORROA",70473]
[null,null,null,null,null,"SUCRE","OVEJAS",70508]
[null,null,null,null,null,"SUCRE","PALMITO",70523]
[null,null,null,null,null,"SUCRE","SAMPUÉS",70670]
[null,null,null,null,null,"SUCRE","SAN BENITO ABAD",70678]
[null,null,null,null,null,"SUCRE","SAN JUAN DE BETULIA",70702]
[null,null,null,null,null,"SUCRE","SAN MARCOS",70708]
[null,null,null,null,null,"SUCRE","SAN ONOFRE",70713]
[null,null,null,null,null,"SUCRE","SAN PEDRO",70717]
[null,null,null,null,null,"SUCRE","SAN LUIS DE SINCÉ",70742]
[null,null,null,null,null,"SUCRE","SUCRE",19785]
[null,null,null,null,null,"SUCRE","SANTIAGO DE TOLÚ",70820]
[null,null,null,null,null,"SUCRE","TOLÚ VIEJO",70823]
[null,null,null,null,null,"TOLIMA","IBAGUÉ",73001]
[null,null,null,null,null,"TOLIMA","ALPUJARRA",73024]
[null,null,null,null,null,"TOLIMA","ALVARADO",73026]
[null,null,null,null,null,"TOLIMA","AMBALEMA",73030]
[null,null,null,null,null,"TOLIMA","ANZOÁTEGUI",73043]
[null,null,null,null,null,"TOLIMA","ARMERO",73055]
[null,null,null,null,null,"TOLIMA","ATACO",73067]
[null,null,null,null,null,"TOLIMA","CAJAMARCA",73124]
[null,null,null,null,null,"TOLIMA","CARMEN DE APICALÁ",73148]
[null,null,null,null,null,"TOLIMA","CASABIANCA",73152]
[null,null,null,null,null,"TOLIMA","CHAPARRAL",73168]
[null,null,null,null,null,"TOLIMA","COELLO",73200]
[null,null,null,null,null,"TOLIMA","COYAIMA",73217]
[null,null,null,null,null,"TOLIMA","CUNDAY",73226]
[null,null,null,null,null,"TOLIMA","DOLORES",73236]
[null,null,null,null,null,"TOLIMA","ESPINAL",73268]
[null,null,null,null,null,"TOLIMA","FALAN",73270]
[null,null,null,null,null,"TOLIMA","FLANDES",73275]
[null,null,null,null,null,"TOLIMA","FRESNO",73283]
[null,null,null,null,null,"TOLIMA","GUAMO",73319]
[null,null,null,null,null,"TOLIMA","HERVEO",73347]
[null,null,null,null,null,"TOLIMA","HONDA",73349]
[null,null,null,null,null,"TOLIMA","ICONONZO",73352]
[null,null,null,null,null,"TOLIMA","LÉRIDA",73408]
[null,null,null,null,null,"TOLIMA","LÍBANO",73411]
[null,null,null,null,null,"TOLIMA","SAN SEBASTIÁN DE MARIQUITA",{"$error":"#N/A"}]
[null,null,null,null,null,"TOLIMA","MELGAR",73449]
[null,null,null,null,null,"TOLIMA","MURILLO",73461]
[null,null,null,null,null,"TOLIMA","NATAGAIMA",73483]
[null,null,null,null,null,"TOLIMA","ORTEGA",73504]
[null,null,null,null,null,"TOLIMA","PALOCABILDO",73520]
[null,null,null,null,null,"TOLIMA","PIEDRAS",73547]
[null,null,null,null,null,"TOLIMA","PLANADAS",73555]
[null,null,null,null,null,"TOLIMA","PRADO",73563]
[null,null,null,null,null,"TOLIMA","PURIFICACIÓN",73585]
[null,null,null,null,null,"TOLIMA","RIOBLANCO",73616]
[null,null,null,null,null,"TOLIMA","RONCESVALLES",73622]
[null,null,null,null,null,"TOLIMA","ROVIRA",73624]
[null,null,null,null,null,"TOLIMA","SALDAÑA",73671]
[null,null,null,null,null,"TOLIMA","SAN ANTONIO",73675]
[null,null,null,null,null,"TOLIMA","SAN LUIS",5660]
[null,null,null,null,null,"TOLIMA","SANTA ISABEL",73686]
[null,null,null,null,null,"TOLIMA","SUÁREZ",19780]
[null,null,null,null,null,"TOLIMA","VALLE DE SAN JUAN",73854]
[null,null,null,null,null,"TOLIMA","VENADILLO",73861]
[null,null,null,null,null,"TOLIMA","VILLAHERMOSA",73870]
[null,null,null,null,null,"TOLIMA","VILLARRICA",73873]
[null,null,null,null,null,"VALLE_DEL_CAUCA","CALI",76001]
[null,null,null,null,null,"VALLE_DEL_CAUCA","ALCALÁ",76020]
[null,null,null,null,null,"VALLE_DEL_CAUCA","ANDALUCÍA",76036]
[null,null,null,null,null,"VALLE_DEL_CAUCA","ANSERMANUEVO",76041]
[null,null,null,null,null,"VALLE_DEL_CAUCA","ARGELIA",5055]
[null,null,null,null,null,"VALLE_DEL_CAUCA","BOLÍVAR",19100]
[null,null,null,null,null,"VALLE_DEL_CAUCA","BUENAVENTURA",76109]
[null,null,null,null,null,"VALLE_DEL_CAUCA","GUADALAJARA DE BUGA",76111]
[null,null,null,null,null,"VALLE_DEL_CAUCA","BUGALAGRANDE",76113]
[null,null,null,null,null,"VALLE_DEL_CAUCA","CAICEDONIA",76122]
[null,null,null,null,null,"VALLE_DEL_CAUCA","CALIMA",76126]
[null,null,null,null,null,"VALLE_DEL_CAUCA","CANDELARIA",8141]
[null,null,null,null,null,"VALLE_DEL_CAUCA","CARTAGO",76147]
[null,null,null,null,null,"VALLE_DEL_CAUCA","DAGUA",76233]
[null,null,null,null,null,"VALLE_DEL_CAUCA","EL ÁGUILA",76243]
[null,null,null,null,null,"VALLE_DEL_CAUCA","EL CAIRO",76246]
[null,null,null,null,null,"VALLE_DEL_CAUCA","EL CERRITO",76248]
[null,null,null,null,null,"VALLE_DEL_CAUCA","EL DOVIO",76250]
[null,null,null,null,null,"VALLE_DEL_CAUCA","FLORIDA",76275]
[null,null,null,null,null,"VALLE_DEL_CAUCA","GINEBRA",76306]
[null,null,null,null,null,"VALLE_DEL_CAUCA","GUACARÍ",76318]
[null,null,null,null,null,"VALLE_DEL_CAUCA","JAMUNDÍ",76364]
[null,null,null,null,null,"VALLE_DEL_CAUCA","LA CUMBRE",76377]
[null,null,null,null,null,"VALLE_DEL_CAUCA","LA UNIÓN",5400]
[null,null,null,null,null,"VALLE_DEL_CAUCA","LA VICTORIA",91430]
[null,null,null,null,null,"VALLE_DEL_CAUCA","OBANDO",76497]
[null,null,null,null,null,"VALLE_DEL_CAUCA","PALMIRA",76520]
[null,null,null,null,null,"VALLE_DEL_CAUCA","PRADERA",76563]
[null,null,null,null,null,"VALLE_DEL_CAUCA","RESTREPO",50606]
[null,null,null,null,null,"VALLE_DEL_CAUCA","RIOFRÍO",76616]
[null,null,null,null,null,"VALLE_DEL_CAUCA","ROLDANILLO",76622]
[null,null,null,null,null,"VALLE_DEL_CAUCA","SAN PEDRO",70717]
[null,null,null,null,null,"VALLE_DEL_CAUCA","SEVILLA",76736]
[null,null,null,null,null,"VALLE_DEL_CAUCA","TORO",76823]
[null,null,null,null,null,"VALLE_DEL_CAUCA","TRUJILLO",76828]
[null,null,null,null,null,"VALLE_DEL_CAUCA","TULUÁ",76834]
[null,null,null,null,null,"VALLE_DEL_CAUCA","ULLOA",76845]
[null,null,null,null,null,"VALLE_DEL_CAUCA","VERSALLES",76863]
[null,null,null,null,null,"VALLE_DEL_CAUCA","VIJES",76869]
[null,null,null,null,null,"VALLE_DEL_CAUCA","YOTOCO",76890]
[null,null,null,null,null,"VALLE_DEL_CAUCA","YUMBO",76892]
[null,null,null,null,null,"VALLE_DEL_CAUCA","ZARZAL",76895]
[null,null,null,null,null,"VAUPÉS","MITÚ",97001]
[null,null,null,null,null,"VAUPÉS","CARURU",97161]
[null,null,null,null,null,"VAUPÉS","PACOA",97511]
[null,null,null,null,null,"VAUPÉS","TARAIRA",97666]
[null,null,null,null,null,"VAUPÉS","PAPUNAUA",97777]
[null,null,null,null,null,"VAUPÉS","YAVARATÉ",97889]
[null,null,null,null,null,"VICHADA","PUERTO CARREÑO",99001]
[null,null,null,null,null,"VICHADA","LA PRIMAVERA",99524]
[null,null,null,null,null,"VICHADA","SANTA ROSALÍA",99624]
[null,null,null,null,null,"VICHADA","CUMARIBO",99773]